Date,Supplier,Brief Description and Quantity,Cost Centre,A/C,Merchant Category,� Gross Amount,VAT Not Recovered,Dept,STATEMENT,208198.31
01/04/2018,Travelodge,Homeless Housing,HH01,818,BED & BREAKFAST PAYMENT,"7,745.00",,Housing,Apr-18,
01/04/2018,Hoo Suite,Marketing,CH01,255,Advertising/Promoting Services,230.40,,Corporate Office,Apr-18,
01/04/2018,Hoo Suite,Marketing,CH01,255,Advertising/Promoting Services,-230.40,,Corporate Office,May-18,
01/04/2018,Hoo Suite,Software,MU69,206,Software,230.40,,Corporate Office,May-18,
04/04/2018,FTA,4 x Tacho Card Readers,ER01,550,MATERIALS,177.60,,Operations,Apr-18,
04/04/2018,Morrisons,Catering Materials,LQ27,559,Catering Materials,2.05,,One Leisure St Ives,Apr-18,
04/04/2018,Morrisons,Catering Materials,LQ27,559,Catering Materials,6.84,,One Leisure St Ives,Apr-18,
04/04/2018,Solace,Annual Membership,CH01,754,CORPORATE SUBSCRIPTIONS,"1,782.00",,Corporate Office,Apr-18,
04/04/2018,We Transfer,Marketing,L213,500,Equipment,108.22,,One Leisure Huntingdon,Apr-18,
04/04/2018,FTA,4 x Tacho Card Readers,ER01,550,MATERIALS,-177.60,,Operations,May-18,
04/04/2018,FTA,4 x Tacho Card Readers,MU26,550,MATERIALS,177.60,,Operations,May-18,
04/04/2018,Solace,Annual Membership,CH01,754,CORPORATE SUBSCRIPTIONS,"-1,782.00",,Corporate Office,May-18,
04/04/2018,Solace,LGA Conference,CH01,137,Conferences,"1,782.00",,Corporate Office,May-18,
04/04/2018,We Transfer,Marketing,L213,500,Equipment,-108.22,,One Leisure Huntingdon,May-18,
05/04/2018,IIA Bookstore,Personal Details Redacted,MH07,130,Training,22.08,,Human Resources,Apr-18,
05/04/2018,Amazon,Equipment,L213,500,Equipment,43.48,,One Leisure Huntingdon,Apr-18,
05/04/2018,Office furniture,Office chairs,L213,500,Equipment,379.20,,One Leisure Huntingdon,Apr-18,
05/04/2018,Amazon,Equipment,CH24,550,MATERIALS,7.99,,Operations,Apr-18,
05/04/2018,Office furniture,Office chairs,L213,500,Equipment,-379.20,,One Leisure Huntingdon,May-18,
05/04/2018,Amazon,Equipment,L213,500,Equipment,-43.48,,One Leisure Huntingdon,May-18,
05/04/2018,We Transfer,Marketing,LL01,255,Advertising/Promoting Services,108.22,,One Leisure Huntingdon,May-18,
05/04/2018,Amazon,Equipment,CH24,550,MATERIALS,-7.99,,Operations,May-18,
06/04/2018,IIA Bookstore,Personal Details Redacted,MH07,130,Training,-22.08,,Human Resources,May-18,
06/04/2018,IIA Bookstore,Personal Details Redacted,MH07,130,Training,22.08,,Human Resources,May-18,
06/04/2018,Amazon,Window vac ,LP90,443,Cleaning Materials,43.48,,One Leisure Huntingdon,May-18,
06/04/2018,Office furniture,Office chairs,LP90,500,Equipment,379.20,,One Leisure Huntingdon,May-18,
09/04/2018,Posturite,Vertical Wireless Mouse,MH07,500,Equipment,99.54,,Corporate Office,Apr-18,
09/04/2018,Posturite,Vertical Wireless Mouse,MH07,500,Equipment,-99.54,,Corporate Office,May-18,
09/04/2018,Posturite,Vertical Wireless Mouse,CH02,500,Equipment,99.54,,Corporate Office,May-18,
09/04/2018,Amazon,Equipment,MU26,754,CORPORATE SUBSCRIPTIONS,7.99,,Operations,May-18,
10/04/2018,DVLA,12 Months RFL,ER01,609,VEHICLE LICENCE,167.50,,Operations,Apr-18,
10/04/2018,DVLA,12 Months RFL,ER01,609,VEHICLE LICENCE,167.50,,Operations,Apr-18,
10/04/2018,DVLA,12 Months RFL,ER01,609,VEHICLE LICENCE,167.50,,Operations,Apr-18,
10/04/2018,DVLA,12 Months RFL,ER01,609,VEHICLE LICENCE,167.50,,Operations,Apr-18,
10/04/2018,DVLA,12 Months RFL,ER01,609,VEHICLE LICENCE,452.50,,Operations,Apr-18,
10/04/2018,Argos,Equipment,LQ27,500,Equipment,39.99,,One Leisure St Ives,Apr-18,
10/04/2018,Argos,Equipment,LQ27,500,Equipment,79.99,,One Leisure St Ives,Apr-18,
10/04/2018,Music Magpie,i-pods,L213,500,Equipment,213.97,,One Leisure Huntingdon,Apr-18,
10/04/2018,Eureka Direct,Equipment,LK90,500,Equipment,147.00,,One Leisure St Ives,Apr-18,
10/04/2018,DVLA,12 Months RFL,ER01,609,VEHICLE LICENCE,-452.50,,Operations,May-18,
10/04/2018,DVLA,12 Months RFL,ER01,609,VEHICLE LICENCE,-167.50,,Operations,May-18,
10/04/2018,DVLA,12 Months RFL,ER01,609,VEHICLE LICENCE,-167.50,,Operations,May-18,
10/04/2018,DVLA,12 Months RFL,ER01,609,VEHICLE LICENCE,-167.50,,Operations,May-18,
10/04/2018,DVLA,12 Months RFL,ER01,609,VEHICLE LICENCE,-167.50,,Operations,May-18,
10/04/2018,DVLA,12 Months RFL,ER01,609,VEHICLE LICENCE,167.50,,Operations,May-18,
10/04/2018,DVLA,12 Months RFL,ER01,609,VEHICLE LICENCE,167.50,,Operations,May-18,
10/04/2018,DVLA,12 Months RFL,ES01,609,VEHICLE LICENCE,167.50,,Operations,May-18,
10/04/2018,DVLA,12 Months RFL,ES01,609,VEHICLE LICENCE,167.50,,Operations,May-18,
10/04/2018,DVLA,12 Months RFL,ER01,609,VEHICLE LICENCE,452.50,,Operations,May-18,
10/04/2018,Music Magpie,i-pods,L213,500,Equipment,-213.97,,One Leisure Huntingdon,May-18,
10/04/2018,Eureka Direct,Equipment,LK90,500,Equipment,-147.00,,One Leisure St Ives,May-18,
10/04/2018,Eureka Direct,Instant cold packs,LQ90,550,MATERIALS,147.00,,One Leisure St Ives,May-18,
11/04/2018,GREENBROOK,Equipment,LQ27,500,Equipment,121.20,,One Leisure St Ives,Apr-18,
11/04/2018,GREENBROOK,Equipment,LQ27,500,Equipment,238.42,,One Leisure St Ives,Apr-18,
11/04/2018,GREENBROOK,Equipment,LQ27,500,Equipment,437.90,,One Leisure St Ives,Apr-18,
11/04/2018,Newitts ,2 x TRX Bands (gym equip),LN02,500,Equipment,309.98,,One Leisure Huntingdon,Apr-18,
11/04/2018,I - tunes,Site audit app,L213,500,Equipment,18.99,,One Leisure Huntingdon,Apr-18,
11/04/2018,Amazon,Henry hoover brush,LQ90,550,MATERIALS,9.25,,One Leisure St Ives,Apr-18,
11/04/2018,Newitts ,2 x TRX Bands (gym equip),LN02,500,Equipment,-309.98,,One Leisure Huntingdon,May-18,
11/04/2018,Newitts ,2 x TRX Bands (gym equip),LN02,500,Equipment,309.98,,One Leisure Huntingdon,May-18,
11/04/2018,I - tunes,Site audit app,L213,500,Equipment,-18.99,,One Leisure Huntingdon,May-18,
11/04/2018,Music Magpie,i-pods,LL01,500,Equipment,213.97,,One Leisure Huntingdon,May-18,
12/04/2018,Eureka Direct,Equipment,LQ27,500,Equipment,48.54,,One Leisure St Ives,Apr-18,
12/04/2018,curry's,Creche fridge / microwave,L213,500,Equipment,99.98,,One Leisure Huntingdon,Apr-18,
12/04/2018,Martin Berrill Sports,County cricket stumps,LK90,500,Equipment,45.95,,One Leisure St Ives,Apr-18,
12/04/2018,curry's,Creche fridge / microwave,L213,500,Equipment,-99.98,,One Leisure Huntingdon,May-18,
12/04/2018,I - tunes,Site audit app,LP90,206,Software,18.99,,One Leisure Huntingdon,May-18,
12/04/2018,Martin Berrill Sports,County cricket stumps,LK90,500,Equipment,-45.95,,One Leisure St Ives,May-18,
12/04/2018,Amazon,Equipment,LK90,500,Equipment,-9.25,,One Leisure St Ives,May-18,
12/04/2018,Amazon,Equipment,LK90,500,Equipment,9.25,,One Leisure St Ives,May-18,
12/04/2018,Martin Berrill Sports,County cricket stumps,LK29,500,Equipment,45.95,,One Leisure St Ives,May-18,
13/04/2018,TVLICENSING,TVLICENSING,LQ27,730,Licences,150.50,,One Leisure St Ives,Apr-18,
13/04/2018,J2 eFax Service,Electronic Fax Services,MD20,206,Software,13.20,,IMD,Apr-18,
13/04/2018,1&1 INTERNET LIMITED,Domain Registrations and Subscriptions,MD20,206,Software,163.63,,IMD,Apr-18,
13/04/2018,Amazon,Equipment,LK90,500,Equipment,23.34,,One Leisure St Ives,Apr-18,
13/04/2018,curry's,Creche fridge / microwave,LP36,500,Equipment,99.98,,One Leisure Huntingdon,May-18,
13/04/2018,1&1 INTERNET LIMITED,Domain Registrations and Subscriptions,MD20,206,Software,-163.63,,IMD,May-18,
13/04/2018,J2 eFax Service,Electronic Fax Services,MD20,206,Software,-13.20,,IMD,May-18,
13/04/2018,J2 eFax Service,Electronic Fax Services,MD34,206,Software,13.20,,IMD,May-18,
13/04/2018,1&1 INTERNET LIMITED,Internet Services,MD20,206,Software,163.63,,IMD,May-18,
13/04/2018,Amazon,Equipment,LK90,500,Equipment,-23.34,,One Leisure St Ives,May-18,
13/04/2018,Amazon,Impeller Tube,LQ90,303,Building Maintenance,23.34,,One Leisure St Ives,May-18,
14/04/2018,Jell,Licences,MD20,206,Software,32.36,,IMD,Apr-18,
14/04/2018,Jell,Licences,MD20,206,Software,-32.36,,IMD,May-18,
14/04/2018,Jell,Licences,MD20,206,Software,32.36,,IMD,May-18,
17/04/2018,Amazon,Equipment,LB41,500,Equipment,9.07,,Active Leisure,Apr-18,
17/04/2018,screwfix,Maintenance items,L213,500,Equipment,24.99,,One Leisure Huntingdon,Apr-18,
17/04/2018,screwfix,vacuum,L213,500,Equipment,44.98,,One Leisure Huntingdon,Apr-18,
17/04/2018,B & Q,Mantenance items,L213,500,Equipment,67.81,,One Leisure Huntingdon,Apr-18,
17/04/2018,Amazon,Equipment,LB41,500,Equipment,-9.07,,Active Leisure,May-18,
17/04/2018,B & Q,Mantenance items,L213,500,Equipment,-67.81,,One Leisure Huntingdon,May-18,
17/04/2018,screwfix,vacuum,L213,500,Equipment,-44.98,,One Leisure Huntingdon,May-18,
17/04/2018,screwfix,Maintenance items,L213,500,Equipment,-24.99,,One Leisure Huntingdon,May-18,
18/04/2018,LGA,LGA PSPO Training,MH07,130,Training,238.80,,Community Services,Apr-18,
18/04/2018,Amazon,Equipment,LQ27,500,Equipment,30.60,,One Leisure St Ives,Apr-18,
18/04/2018,Amazon,Equipment,LQ27,500,Equipment,35.97,,One Leisure St Ives,Apr-18,
18/04/2018,Amazon,Equipment,LQ27,500,Equipment,38.63,,One Leisure St Ives,Apr-18,
18/04/2018,SECURITY INDUSTRY,Equipment,LQ27,500,Equipment,220.00,,One Leisure St Ives,Apr-18,
18/04/2018,Sainsburys,Hospitality,CH01,807,Hospitality,14.10,,Corporate Office,Apr-18,
18/04/2018,LGA,LGA PSPO Training,MH07,130,Training,-238.80,,Community Services,May-18,
18/04/2018,Sainsburys,Hospitality,CH01,807,Hospitality,-14.10,,Corporate Office,May-18,
18/04/2018,Sainsburys,Refreshments,CH01,807,Hospitality,14.10,,Corporate Office,May-18,
18/04/2018,Srewfix,digi lock,LP90,303,Building Maintenance,24.99,,One Leisure Huntingdon,May-18,
18/04/2018,screwfix,vacuum,LP02,500,Equipment,44.98,,One Leisure Huntingdon,May-18,
18/04/2018,B & Q,Mantenance items,LP90,303,Building Maintenance,67.81,,One Leisure Huntingdon,May-18,
19/04/2018,Sainsburys,Sainsburys,MD24,807,Hospitality,20.00,,IMD,Apr-18,
19/04/2018,Allpay,Homeless Deposit,HH01,816,INCENTIVE PAYMENT,419.56,,Housing,Apr-18,
19/04/2018,Amazon,Equipment,LQ27,500,Equipment,5.99,,One Leisure St Ives,Apr-18,
19/04/2018,Amazon,Equipment,LQ27,500,Equipment,18.70,,One Leisure St Ives,Apr-18,
19/04/2018,by dan,jugs,L213,500,Equipment,2.69,,One Leisure Huntingdon,Apr-18,
19/04/2018,sjewelrtcol,maintenance items,L213,500,Equipment,7.79,,One Leisure Huntingdon,Apr-18,
19/04/2018,H32 ltd,jerry can,L213,500,Equipment,7.99,,One Leisure Huntingdon,Apr-18,
19/04/2018,LGA,LGA PSPO Training,MH07,130,Training,238.80,,Community Services,May-18,
19/04/2018,Amazon,Postage Charges,LB33,231,Postage,3.99,,Active Leisure,May-18,
19/04/2018,Amazon,Velcro Straps for Machines,LB33,500,Equipment,5.08,,Active Leisure,May-18,
19/04/2018,H32 ltd,jerry can,L213,500,Equipment,-7.99,,One Leisure Huntingdon,May-18,
19/04/2018,sjewelrtcol,maintenance items,L213,500,Equipment,-7.79,,One Leisure Huntingdon,May-18,
19/04/2018,by dan,jugs,L213,500,Equipment,-2.69,,One Leisure Huntingdon,May-18,
20/04/2018,Waterstones,Key Element Guide Suite (ITIL),MD20,206,Software,44.95,,IMD,Apr-18,
20/04/2018,by dan,jugs,LP90,303,Building Maintenance,2.69,,One Leisure Huntingdon,May-18,
20/04/2018,sjewelrtcol,maintenance items,LP90,303,Building Maintenance,7.79,,One Leisure Huntingdon,May-18,
20/04/2018,H32 ltd,jerry can,LP90,303,Building Maintenance,7.99,,One Leisure Huntingdon,May-18,
20/04/2018,Waterstones,Key Element Guide Suite (ITIL),MD20,206,Software,-44.95,,IMD,May-18,
20/04/2018,Waterstones,Key Element Guide Suite (ITIL),MD20,250,Books & publications,44.95,,IMD,May-18,
23/04/2018,Amazon,Equipment,ER01,500,Equipment,232.43,,Operations,Apr-18,
23/04/2018,Amazon,Equipment,ER01,500,Equipment,276.00,,Operations,Apr-18,
23/04/2018,Chef Central,Hospitality,CH01,807,Hospitality,11.08,,Corporate Office,Apr-18,
23/04/2018,MailChimp,Automated email Subs and monthly subs,MD20,206,Software,25.21,,IMD,Apr-18,
23/04/2018,Amazon,Equipment,ER01,500,Equipment,-276.00,,Operations,May-18,
23/04/2018,Amazon,Equipment,ER01,500,Equipment,-232.43,,Operations,May-18,
23/04/2018,Amazon,4 x Digital Cameras,ER01,500,Equipment,232.43,,Operations,May-18,
23/04/2018,Amazon,3 x Actions Cams - Ops,MU26,500,Equipment,276.00,,Operations,May-18,
23/04/2018,Chef Central,Hospitality,CH01,807,Hospitality,-11.08,,Corporate Office,May-18,
23/04/2018,Chef Central,Hospitality,CE86,807,Hospitality,11.08,,Corporate Office,May-18,
23/04/2018,MailChimp,Automated email Subs and monthly subs,MD20,206,Software,-25.21,,IMD,May-18,
23/04/2018,MailChimp,Automated email Subs and monthly subs,MD34,206,Software,25.21,,IMD,May-18,
24/04/2018,UPT Cambridge,Parking - Cambs 3C values delivery,MH07,636,TRAVEL EXPENSES,4.80,,Human Resources,Apr-18,
24/04/2018,Baker Ross,Equipment,LQ27,500,Equipment,98.21,,One Leisure St Ives,Apr-18,
24/04/2018,Aldi,Hospitality,CH01,807,Hospitality,26.63,,Corporate Office,Apr-18,
24/04/2018,UPT Cambridge,Parking - Cambs 3C values delivery,MH07,636,TRAVEL EXPENSES,-4.80,,Human Resources,May-18,
24/04/2018,UPT Cambridge,Parking - Cambs 3C values delivery,MH07,130,Training,4.80,,Human Resources,May-18,
24/04/2018,Aldi,Hospitality,CH01,807,Hospitality,-26.63,,Corporate Office,May-18,
24/04/2018,Aldi,Hospitality,CE86,807,Hospitality,2.38,,Corporate Office,May-18,
24/04/2018,Aldi,Hospitality,CE86,807,Hospitality,24.25,,Corporate Office,May-18,
25/04/2018,Sainsburys,Hospitality,CH01,807,Hospitality,24.30,,Corporate Office,Apr-18,
25/04/2018,Wilko,Hospitality,CH01,807,Hospitality,81.00,,Corporate Office,Apr-18,
25/04/2018,Wilko,Hospitality,CH01,807,Hospitality,-81.00,,Corporate Office,May-18,
25/04/2018,Sainsburys,Hospitality,CH01,807,Hospitality,-24.30,,Corporate Office,May-18,
25/04/2018,Sainsburys,Hospitality,CE86,807,Hospitality,24.30,,Corporate Office,May-18,
25/04/2018,Wilko,Equipment,CE86,225,Stationery,81.00,,Corporate Office,May-18,
26/04/2018,Amazon,Equipment,LN02,500,Equipment,40.78,,One Leisure Huntingdon,Apr-18,
26/04/2018,Hoo Suite,Marketing,LQ21,255,Advertising/Promoting Services,142.80,,One Leisure Huntingdon,Apr-18,
26/04/2018,Atlassian,Cloud and JIRA Services,MD20,206,Software,14.81,,IMD,Apr-18,
26/04/2018,Amazon,Equipment,LN02,500,Equipment,-40.78,,One Leisure Huntingdon,May-18,
26/04/2018,Amazon,Nerf Bullets,LN10,500,Equipment,40.78,,One Leisure Huntingdon,May-18,
26/04/2018,Hoo Suite,Marketing,LQ21,255,Advertising/Promoting Services,-142.80,,One Leisure Huntingdon,May-18,
26/04/2018,Atlassian,Cloud and JIRA Services,MD20,206,Software,-14.81,,IMD,May-18,
26/04/2018,Atlassian,Cloud and JIRA Services,MD20,206,Software,14.81,,IMD,May-18,
27/04/2018,Amazon,Equipment,LQ27,500,Equipment,9.39,,One Leisure St Ives,Apr-18,
27/04/2018,1&1 INTERNET LIMITED,Domain Registrations and Subscriptions,MD20,206,Software,6.12,,IMD,Apr-18,
27/04/2018,GitHub,Monthly Subs for 7 licences,MD20,206,Software,32.20,,IMD,Apr-18,
27/04/2018,Argos,Equipment,LK90,500,Equipment,199.99,,One Leisure St Ives,Apr-18,
27/04/2018,Hoo Suite,Marketing,LL01,255,Advertising/Promoting Services,142.80,,One Leisure Huntingdon,May-18,
27/04/2018,GitHub,Monthly Subs for 7 licences,MD20,206,Software,-32.20,,IMD,May-18,
27/04/2018,1&1 INTERNET LIMITED,Domain Registrations and Subscriptions,MD20,206,Software,-6.12,,IMD,May-18,
27/04/2018,1&1 INTERNET LIMITED,Domain Reg - councillor.online,MD20,206,Software,6.12,,IMD,May-18,
27/04/2018,GitHub,Monthly Subs for 7 licences,MD20,206,Software,32.20,,IMD,May-18,
27/04/2018,Argos,Equipment,LK90,500,Equipment,-199.99,,One Leisure St Ives,May-18,
27/04/2018,Argos,Dyson cordless vaccumn cleaner,LQ02,500,Equipment,199.99,,One Leisure St Ives,May-18,
30/04/2018,Briar Rose,Accommodation,MH07,137,Conferences,55.00,,Human Resources,Apr-18,
30/04/2018,IRRV,course,MH07,137,Conferences,300.00,,Human Resources,Apr-18,
30/04/2018,BELL CHEM PRODUCTS,Equipment,LQ27,500,Equipment,48.00,,One Leisure St Ives,Apr-18,
30/04/2018,Sainsburys,Hospitality,CH01,807,Hospitality,8.00,,Corporate Office,Apr-18,
30/04/2018,Facebook,Marketing,LQ21,255,Advertising/Promoting Services,33.86,,One Leisure Huntingdon,Apr-18,
30/04/2018,Facebook,Marketing,LQ21,255,Advertising/Promoting Services,174.87,,One Leisure Huntingdon,Apr-18,
30/04/2018,IRRV,course,MH07,137,Conferences,-300.00,,Human Resources,May-18,
30/04/2018,Briar Rose,Accommodation,MH07,137,Conferences,-55.00,,Human Resources,May-18,
30/04/2018,Briar Rose,Accommodation,HB85,140,Subsistence,55.00,,Human Resources,May-18,
30/04/2018,IRRV,course,MH07,130,Training,300.00,,Human Resources,May-18,
30/04/2018,Sainsburys,Hospitality,CH01,807,Hospitality,-8.00,,Corporate Office,May-18,
30/04/2018,Sainsburys,Hospitality,CE86,807,Hospitality,8.00,,Corporate Office,May-18,
30/04/2018,Facebook,Marketing,LQ21,255,Advertising/Promoting Services,-174.87,,One Leisure Huntingdon,May-18,
30/04/2018,Facebook,Marketing,LQ21,255,Advertising/Promoting Services,-33.86,,One Leisure Huntingdon,May-18,
01/05/2018,Facebook,Marketing,LL01,255,Advertising/Promoting Services,33.86,,One Leisure Huntingdon,May-18,
01/05/2018,Facebook,Marketing,LL01,255,Advertising/Promoting Services,174.87,,One Leisure Huntingdon,May-18,
02/05/2018,Bodystat,Equipment,LN02,500,Equipment,48.60,,One Leisure Huntingdon,May-18,
03/05/2018,Wilko,Stationary,CE86,225,Stationery,38.05,,Corporate Office,May-18,
03/05/2018,Dominos Pizza,Hospitality,CE86,807,Hospitality,74.96,,Corporate Office,May-18,
04/05/2018,Tamar Telecom,03 Number Rental and costs,MD32,240,Telephone &Mobile PhoneCharges,17.99,,IMD,May-18,
09/05/2018,Asda,Stationery for management programme,MH07,130,Training,30.55,,Human Resources,May-18,
09/05/2018,Amazon,Equipment,LQ27,500,Equipment,9.89,,One Leisure St Ives,May-18,
09/05/2018,Amazon,Hose,LP90,303,Building Maintenance,50.15,,One Leisure Huntingdon,May-18,
10/05/2018,Morrisons,Equipment,LQ27,500,Equipment,45.33,,One Leisure St Ives,May-18,
10/05/2018,Roxton Garden Centre,Equipment,LN02,500,Equipment,23.94,,One Leisure Huntingdon,May-18,
10/05/2018,H G Pell & Sons,Equipment,LN02,500,Equipment,50.40,,One Leisure Huntingdon,May-18,
11/05/2018,Be My Bear,Equipment,LK90,500,Equipment,88.99,,One Leisure St Ives,May-18,
13/05/2018,Morrisons,Equipment,LQ27,500,Equipment,39.29,,One Leisure St Ives,May-18,
13/05/2018,J2 eFax Service,Electronic Fax Services,MD32,206,Software,13.20,,IMD,May-18,
14/05/2018,Amazon,Equipment,LQ27,500,Equipment,10.98,,One Leisure St Ives,May-18,
14/05/2018,Amazon,Equipment,LQ27,500,Equipment,15.00,,One Leisure St Ives,May-18,
14/05/2018,Amazon,Equipment,LQ27,500,Equipment,15.69,,One Leisure St Ives,May-18,
14/05/2018,Amazon,Equipment,LQ27,500,Equipment,20.85,,One Leisure St Ives,May-18,
14/05/2018,Home Bargins,Equipment,LQ27,500,Equipment,29.85,,One Leisure St Ives,May-18,
14/05/2018,Sainsburys,Hospitality,CG03,807,Hospitality,5.80,,Corporate Office,May-18,
14/05/2018,screwfix,Maintenance items,LP90,303,Building Maintenance,27.98,,One Leisure Huntingdon,May-18,
14/05/2018,storm flame,Finger guards,LP90,303,Building Maintenance,247.19,,One Leisure Huntingdon,May-18,
14/05/2018,1&1 INTERNET LIMITED,Domain Registrations and Subscriptions,MD20,206,Software,91.39,,IMD,May-18,
15/05/2018,PrinterInks,Print Cartridge for Doc Centre,MS01,511,Equipment Maintenance,65.94,,Community Services,May-18,
15/05/2018,Inside Gov,Commissioning the Voluntary Sector,MH07,130,Training,426.60,,Community Services,May-18,
15/05/2018,DVLA,12 Months RFL,EG05,609,VEHICLE LICENCE,252.50,,Operations,May-18,
15/05/2018,DVLA,12 Months RFL,ES01,609,VEHICLE LICENCE,252.50,,Operations,May-18,
15/05/2018,DVLA,12 Months RFL,EG06,609,VEHICLE LICENCE,252.50,,Operations,May-18,
15/05/2018,DVLA,12 Months RFL,EG06,609,VEHICLE LICENCE,252.50,,Operations,May-18,
15/05/2018,Amazon,Equipment,LQ27,500,Equipment,5.99,,One Leisure St Ives,May-18,
15/05/2018,Amazon,Equipment,LQ27,500,Equipment,9.78,,One Leisure St Ives,May-18,
15/05/2018,Janitotrial Direct Ltd,Equipment,LQ27,500,Equipment,91.70,,One Leisure St Ives,May-18,
15/05/2018,Inter Continentals Hotels,Conference,CH04,137,Conferences,100.00,,Corporate Office,May-18,
16/05/2018,Amazon,Equipment,LQ27,500,Equipment,28.43,,One Leisure St Ives,May-18,
16/05/2018,Fitness Superstore,Equipment,LN02,500,Equipment,97.94,,One Leisure Huntingdon,May-18,
16/05/2018,Sainsburys,Hospitality,CG03,807,Hospitality,4.90,,Corporate Office,May-18,
16/05/2018,Umbraco,Training Subscription - Online Based,MD20,206,Software,23.00,,IMD,May-18,
16/05/2018,Booking.com,Personal Details Redacted,MD20,130,Training,87.12,,IMD,May-18,
21/05/2018,Morrisons,Equipment,LQ27,500,Equipment,31.83,,One Leisure St Ives,May-18,
21/05/2018,Nisbets,Knifes/Containers/Sterno Stem Fuel,LD40,550,MATERIALS,254.86,,Operations,May-18,
21/05/2018,Nisbets,Parasols,LD90,500,Equipment,525.52,,Operations,May-18,
23/05/2018,H C Slingsby,Equipment,LQ27,500,Equipment,82.80,,One Leisure St Ives,May-18,
23/05/2018,MailChimp,Automated Email and Monthly Suscription,MD32,206,Software,37.56,,IMD,May-18,
23/05/2018,PsionEx,Li-lon battery packs,TC90,500,Equipment,177.55,,Operations,May-18,
24/05/2018,MSBill,Software,MD20,206,Software,7.39,,IMD,May-18,
24/05/2018,CIEH,CIEH Food Conference,MH07,130,Training,136.00,,Community Services,May-18,
24/05/2018,Amazon,Equipment,LQ27,500,Equipment,6.49,,One Leisure St Ives,May-18,
25/05/2018,Flowers by Nicola Jayne,Flowers,CH01,807,Hospitality,30.00,,Corporate Office,May-18,
26/05/2018,Atlassian ,JIRA and Cloud Subscriptions,MD20,206,Software,15.60,,IMD,May-18,
27/05/2018,GitHub,Monthly Subscription for 7 Licences,MD20,206,Software,33.31,,IMD,May-18,
28/05/2018,Hoo Suite,Marketing,LL01,255,Advertising/Promoting Services,142.80,,One Leisure Huntingdon,May-18,
29/05/2018,Premier Inn,Conference,MU17,137,Conferences,83.00,,Corporate Office,May-18,
29/05/2018,Tamar Telecom,03 Number Rental and costs,MD32,240,Telephone &Mobile PhoneCharges,23.99,,IMD,May-18,
29/05/2018,Bitrix,Web based project management Subs,MD20,206,Software,155.16,,IMD,May-18,
30/05/2018,Amazon,Equipment,LQ27,500,Equipment,13.77,,One Leisure St Ives,May-18,
30/05/2018,Teacher Boards,Signs,QM90,565,Signs,187.13,,Operations,May-18,
31/05/2018,Argos,Homeless Housing,HH01,818,BED & BREAKFAST PAYMENT,19.99,,Housing,May-18,
31/05/2018,Allpay,Homeless Deposit,HH01,816,INCENTIVE PAYMENT,331.32,,Housing,May-18,
31/05/2018,Travelodge,Homeless Housing,HH01,818,BED & BREAKFAST PAYMENT,"5,334.75",,Housing,May-18,
01/06/2018,Indigo,Magnetic Tape,ER01,550,MATERIALS,16.68,,Operations,May-18,
01/06/2018,MailChimp,marketing,LQ21,255,Advertising/Promoting Services,45.68,,One Leisure Huntingdon,May-18,
01/06/2018,Facebook,Marketing,LQ21,255,Advertising/Promoting Services,114.62,,One Leisure Huntingdon,May-18,
01/06/2018,Travelodge,Temp Accomodation,H4217,64401,B&B Accomodation,156.00,,Housing,Jun-18,
01/06/2018,Travelodge,Temp Accomodation,H4350,64401,B&B Accomodation,515.00,,Housing,Jun-18,
01/06/2018,Amazon,Equipment,4057,62007,Purchase Card Expense,21.30,,One Leisure St Ives,Jun-18,
01/06/2018,DOLPHIN SOLUTIONS LTD,Equipment,4057,62007,Purchase Card Expense,76.80,,One Leisure St Ives,Jun-18,
01/06/2018,Sainsburys,Hospitality,4145,61903,Hospitality,15.20,,Corporate Office,Jun-18,
04/06/2018,Travelodge,Temp Accomodation,H4346,64401,B&B Accomodation,-196.00,,Housing,Jun-18,
04/06/2018,Travelodge,Temp Accomodation,H4217,64401,B&B Accomodation,58.00,,Housing,Jun-18,
04/06/2018,Travelodge,Temp Accomodation,H4374,64401,B&B Accomodation,448.00,,Housing,Jun-18,
04/06/2018,CHOICE,Work Wear,4050,61709,Materials,25.50,,One Leisure St Ives,Jun-18,
04/06/2018,NEXT 0809 BARHILL,Work Wear,4050,62000,"Clothes, Uniform and Laundry",42.05,,One Leisure St Ives,Jun-18,
04/06/2018,SurveyMonkey,Survey,5276,62007,Purchase Card Expense,35.00,,Operations,Jun-18,
05/06/2018,Travelodge,Temp Accomodation,H4217,64401,B&B Accomodation,74.00,,Housing,Jun-18,
05/06/2018,POUNDWORLD RETAIL,Equipment,4057,62007,Purchase Card Expense,6.00,,One Leisure St Ives,Jun-18,
05/06/2018,W M MORRISON PLC,supplies,4057,62007,Purchase Card Expense,41.48,,One Leisure St Ives,Jun-18,
06/06/2018,W M MORRISON PLC,supplies,4049,61900,Catering Supplies,6.94,,One Leisure St Ives,Jun-18,
06/06/2018,NADPO,Conference,5225,64300,Conference Expenses,50.00,,IMD,Jun-18,
06/06/2018,Amazon,Equipment,4075,62007,Purchase Card Expense,4.67,,One Leisure St Ives,Jun-18,
06/06/2018,Amazon,Equipment,4075,62007,Purchase Card Expense,4.69,,One Leisure St Ives,Jun-18,
06/06/2018,Amazon,Equipment,4075,62007,Purchase Card Expense,9.38,,One Leisure St Ives,Jun-18,
06/06/2018,Amazon,Equipment,4075,62007,Purchase Card Expense,169.00,,One Leisure St Ives,Jun-18,
08/06/2018,WICKES,Materials,4021,60201,Maintenance Buildings,24.98,,One Leisure Huntingdon,Jun-18,
08/06/2018,WWW.NISBETS.COM,Catering Equipment,4118,61900,Catering Supplies,114.68,,Operations,Jun-18,
09/06/2018,Amazon,Equipment,4446,61713,Equipment,10.44,,Housing,Jun-18,
10/06/2018,EXPRO LTD,Registration,4139,62007,Purchase Card Expense,2.95,,Community Services,Jun-18,
11/06/2018,SCANNER EXPRESS LIMITED,Scanner,4139,62007,Purchase Card Expense,251.94,,Community Services,Jun-18,
11/06/2018,Travelodge,Temp Accomodation,H4374,64401,B&B Accomodation,151.00,,Housing,Jun-18,
11/06/2018,Travelodge,Temp Accomodation,H4374,64401,B&B Accomodation,482.00,,Housing,Jun-18,
12/06/2018,Digicert Inc,SSL Certificate for *.cambridge.gov.uk,5227,64071,ICT Software,135.04,,IMD,Jun-18,
12/06/2018,Digicert Inc,SSL Certificate for *.cambridge.gov.uk,5227,64071,ICT Software,135.04,,IMD,Jun-18,
13/06/2018,Premier Inn,Temp Accomodation,H4350,64401,B&B Accomodation,-129.00,,Housing,Jun-18,
13/06/2018,Travelodge,Temp Accomodation,H4350,64401,B&B Accomodation,106.00,,Housing,Jun-18,
13/06/2018,Premier Inn,Temp Accomodation,H4350,64401,B&B Accomodation,129.00,,Housing,Jun-18,
13/06/2018,RAMSEY PAINT COMPANY L,Equipment,4057,62007,Purchase Card Expense,31.19,,One Leisure St Ives,Jun-18,
13/06/2018,Marks & Spencer PLC,Hospitality,4145,61903,Hospitality,55.50,,Corporate Office,Jun-18,
13/06/2018,J2 eFax Service,eFax Service for City,5222,64071,ICT Software,13.20,,IMD,Jun-18,
13/06/2018,1&1 INTERNET LIMITED,Domain Registration,6999,64071,ICT Software,16.78,,IMD,Jun-18,
13/06/2018,Shutterstock,Images for Web Page,5225,62005,"Advertising, Publicity and Marketing",34.80,,IMD,Jun-18,
13/06/2018,Shutterstock,Images for Web Page,5225,62005,"Advertising, Publicity and Marketing",34.80,,IMD,Jun-18,
13/06/2018,Shutterstock,Images for Web Page,5225,62005,"Advertising, Publicity and Marketing",34.80,,IMD,Jun-18,
13/06/2018,Shutterstock,Images for Web Page,5225,62003,"Books, Publications and Resources",34.80,,IMD,Jun-18,
14/06/2018,HomeBase Ltd,Materials,4021,60201,Maintenance Buildings,57.19,,One Leisure Huntingdon,Jun-18,
15/06/2018,MOTO (CALLPAY/I,Homeless Prevention,H2988,64403,Homeless Prevention Payments,30.08,,Housing,Jun-18,
15/06/2018,HOLLAND & BARRETT,Equipment,4057,62007,Purchase Card Expense,10.75,,One Leisure St Ives,Jun-18,
15/06/2018,Tesco,supplies,4057,62007,Purchase Card Expense,32.80,,One Leisure St Ives,Jun-18,
16/06/2018,Umbraco,Council Website project,5225,64071,ICT Software,369.00,,IMD,Jun-18,
20/06/2018,Travelodge,Temp Accomodation,H4374,64401,B&B Accomodation,73.00,,Housing,Jun-18,
20/06/2018,Travelodge,Temp Accomodation,H4374,64401,B&B Accomodation,298.50,,Housing,Jun-18,
20/06/2018,Marks & Spencer PLC,Hospitality,4145,61903,Hospitality,7.90,,Corporate Office,Jun-18,
20/06/2018,Amazon,2 x iphone cases,5225,64070,ICT Hardware,14.39,,IMD,Jun-18,
21/06/2018,W M MORRISON PLC,supplies,4049,61900,Catering Supplies,7.95,,One Leisure St Ives,Jun-18,
21/06/2018,Amazon,Equipment,100050,61713,Equipment,55.99,,One Leisure Huntingdon,Jun-18,
21/06/2018,NCP LTD,Parking,4145,60012,Employee Allowances,4.00,,Corporate Office,Jun-18,
21/06/2018,Amazon,CDL Micro RJ45 Couplers,5225,64070,ICT Hardware,4.98,,IMD,Jun-18,
21/06/2018,Digicert Inc,SSL Certificate for *.cambridge.gov.uk,5227,64071,ICT Software,234.97,,IMD,Jun-18,
22/06/2018,Travelodge,Temp Accomodation,H3794,64401,B&B Accomodation,532.00,,Housing,Jun-18,
23/06/2018,Amazon,Equipment,4057,62007,Purchase Card Expense,5.83,,One Leisure St Ives,Jun-18,
23/06/2018,Mailchimp,Automated Email and Monthly Suscription,5222,64071,ICT Software,38.10,,IMD,Jun-18,
25/06/2018,Travelodge,Temp Accomodation,H4374,64401,B&B Accomodation,58.00,,Housing,Jun-18,
25/06/2018,Travelodge,Temp Accomodation,H4374,64401,B&B Accomodation,427.00,,Housing,Jun-18,
25/06/2018,DVLA,Vehicle Licence,AF12LZE,60907,Other Vehicle Costs,252.50,,Operations,Jun-18,
25/06/2018,DVLA,Vehicle Licence,AE06LVV,60907,Other Vehicle Costs,652.50,,Operations,Jun-18,
25/06/2018,Amazon,Equipment,4050,61709,Materials,40.53,,One Leisure St Ives,Jun-18,
25/06/2018,Amazon,Equipment,4057,62007,Purchase Card Expense,51.98,,One Leisure St Ives,Jun-18,
25/06/2018,Amazon,Equipment,100050,61713,Equipment,329.94,,One Leisure Huntingdon,Jun-18,
26/06/2018,Amazon,Equipment,4057,62007,Purchase Card Expense,10.77,,One Leisure St Ives,Jun-18,
26/06/2018,Amazon,Equipment,4050,61709,Materials,17.50,,One Leisure St Ives,Jun-18,
26/06/2018,Amazon,Equipment,4050,61709,Materials,23.20,,One Leisure St Ives,Jun-18,
26/06/2018,Amazon,Equipment,4050,61709,Materials,23.65,,One Leisure St Ives,Jun-18,
26/06/2018,Amazon,Equipment,4050,62000,"Clothes, Uniform and Laundry",25.50,,One Leisure St Ives,Jun-18,
26/06/2018,Amazon,Equipment,4057,62007,Purchase Card Expense,25.51,,One Leisure St Ives,Jun-18,
26/06/2018,Amazon,Equipment,4050,61709,Materials,26.80,,One Leisure St Ives,Jun-18,
26/06/2018,Amazon,Equipment,4050,61709,Materials,32.00,,One Leisure St Ives,Jun-18,
26/06/2018,Amazon,Equipment,4050,61709,Materials,42.90,,One Leisure St Ives,Jun-18,
26/06/2018,Amazon,Equipment,4050,61709,Materials,47.61,,One Leisure St Ives,Jun-18,
26/06/2018,Amazon,Equipment,4057,62007,Purchase Card Expense,86.13,,One Leisure St Ives,Jun-18,
26/06/2018,Amazon,Equipment,4050,61709,Materials,125.94,,One Leisure St Ives,Jun-18,
26/06/2018,Amazon,Equipment,4145,62003,"Books, Publications and Resources",5.78,,Corporate Office,Jun-18,
26/06/2018,screwfix,Materials,4021,60201,Maintenance Buildings,7.99,,One Leisure Huntingdon,Jun-18,
26/06/2018,Hoo Suite,Marketing,4010,60201,Maintenance Buildings,142.80,,One Leisure Huntingdon,Jun-18,
26/06/2018,FORPOS LTD,Posiflex Cash Drawer Keys,5224,64070,ICT Hardware,10.74,,IMD,Jun-18,
26/06/2018,Atlassian,JIRA and Cloud Subscriptions,5225,64071,ICT Software,15.61,,IMD,Jun-18,
26/06/2018,WWW.NISBETS.COM,Catering Equipment,5276,62007,Purchase Card Expense,213.99,,Operations,Jun-18,
27/06/2018,CROSS KEYS HOMES,Homeless Prevention,H1251,64403,Homeless Prevention Payments,259.56,,Housing,Jun-18,
27/06/2018,Amazon,Equipment,4057,62007,Purchase Card Expense,7.29,,One Leisure St Ives,Jun-18,
27/06/2018,Amazon,Equipment,4057,62007,Purchase Card Expense,25.51,,One Leisure St Ives,Jun-18,
27/06/2018,WWW.GETTYIMAGES.COM,Marketing,4010,60201,Maintenance Buildings,70.00,,One Leisure Huntingdon,Jun-18,
27/06/2018,WWW.SWIMMING.ORG,Staff Development,5220,60115,Staff Training and Devlopment,299.00,,One Leisure Huntingdon,Jun-18,
27/06/2018,GitHub,Monthly Subscription for 7 Licences,5225,64071,ICT Software,33.78,,IMD,Jun-18,
27/06/2018,Amazon,Equipment,5276,62007,Purchase Card Expense,4.55,,Operations,Jun-18,
27/06/2018,Amazon,Equipment,5276,62007,Purchase Card Expense,20.66,,Operations,Jun-18,
27/06/2018,Tesco,supplies,5276,62007,Purchase Card Expense,85.00,,Operations,Jun-18,
27/06/2018,Amazon,Equipment,5276,62007,Purchase Card Expense,129.94,,Operations,Jun-18,
28/06/2018,WWW.FTA.CO.UK,Walk around pads,4343,11003,Inventory Control,330.00,,Operations,Jun-18,
28/06/2018,Amazon,Equipment,4057,62007,Purchase Card Expense,25.50,,One Leisure St Ives,Jun-18,
28/06/2018,Amazon,Equipment,4075,61709,Materials,33.96,,One Leisure Huntingdon,Jun-18,
28/06/2018,ACROKOOL LTD,Water Cooler,4075,61702,"Maintenance - Equipment, Furniture and Materials",52.20,,One Leisure Huntingdon,Jun-18,
28/06/2018,Sainsburys,Hospitality,4145,61903,Hospitality,6.00,,Corporate Office,Jun-18,
28/06/2018,Amazon,Equipment,5276,62007,Purchase Card Expense,21.89,,Operations,Jun-18,
28/06/2018,Amazon,Equipment,5276,62007,Purchase Card Expense,21.89,,Operations,Jun-18,
28/06/2018,LABELZONE,Labels,5222,64070,ICT Hardware,109.37,,IMD,Jun-18,
29/06/2018,Bitrix,Web-based PM Tool,4057,62007,Purchase Card Expense,156.78,,IMD,Jun-18,
29/06/2018,VOLVO GROUP,Vehicle Parts,5276,62007,Purchase Card Expense,221.10,,Operations,Jun-18,
29/06/2018,VOLVO GROUP,Vehicle Parts,5276,62007,Purchase Card Expense,251.10,,Operations,Jun-18,
30/06/2018,Mailchimp,Marketing,4050,62005,"Advertising, Publicity and Marketing",46.26,,One Leisure Huntingdon,Jun-18,
01/07/2018,Facebook,Marketing,4050,62005,"Advertising, Publicity and Marketing",4.95,,One Leisure Huntingdon,Jun-18,
01/07/2018,Facebook,Marketing,4050,60201,Maintenance Buildings,196.02,,One Leisure Huntingdon,Jun-18,
02/07/2018,Travelodge,Temp Accomodation,H4374,64401,B&B Accomodation,126.00,,Housing,Jun-18,
02/07/2018,Travelodge,Temp Accomodation,H4374,64401,B&B Accomodation,466.00,,Housing,Jun-18,
02/07/2018,W M MORRISON PLC,supplies,4057,62007,Purchase Card Expense,74.99,,One Leisure St Ives,Jun-18,
02/07/2018,RAILEASY WEB SITE,Train Tickets,4145,60022,Travel Allowance,41.87,,Corporate Office,Jun-18,
02/07/2018,MALMAISON BHAM,Conference,4145,64300,Conference Expenses,"1,011.00",,Corporate Office,Jun-18,
03/07/2018,VALUE PRODUCTS LTD,supplies,4050,61713,Equipment,250.74,,One Leisure St Ives,Jul-18,
03/07/2018,Premier Inn,Premier Inn conference accommodation,5283,64300,Conference Expenses,321.50,,Corporate Office,Jul-18,
03/07/2018,EXPERTEES PERSONALISED C,Workware,5225,62007,Purchase Card Expense,426.58,,IMD,Jul-18,
04/07/2018,Amazon,Equipment,4050,61713,Equipment,4.99,,One Leisure St Ives,Jul-18,
04/07/2018,Amazon,Equipment,4075,61713,Equipment,18.78,,One Leisure Huntingdon,Jul-18,
04/07/2018,WWW.SAFELINCS.CO.UK,Fire Equipment,4021,60201,Maintenance Buildings,47.27,,One Leisure Huntingdon,Jul-18,
04/07/2018,BLINDS 2 GO LTD,Blinds,4021,60201,Maintenance Buildings,87.67,,One Leisure Huntingdon,Jul-18,
05/07/2018,Travelodge,Temp Accomodation,H4512,64401,B&B Accomodation,-274.00,,Housing,Jul-18,
05/07/2018,Amazon,Equipment,4075,61713,Equipment,25.54,,One Leisure Huntingdon,Jul-18,
05/07/2018,Crazy Egg,Photos,5225,64071,ICT Software,177.79,,IMD,Jul-18,
06/07/2018,Amazon,Equipment,5225,62007,Purchase Card Expense,14.58,,IMD,Jul-18,
06/07/2018,Travelodge,Temp Accomodation,H4512,64401,B&B Accomodation,147.00,,Housing,Jul-18,
06/07/2018,Travelodge,Temp Accomodation,H4512,64401,B&B Accomodation,196.00,,Housing,Jul-18,
06/07/2018,SP * SAPEXERCISE,Equipment,4075,61713,Equipment,63.60,,One Leisure Huntingdon,Jul-18,
06/07/2018,WWW.BCS.ORG,Membership fee,5225,62007,Purchase Card Expense,88.00,,IMD,Jul-18,
07/07/2018,SurveyMonkey,Survey,4139,62005,"Advertising, Publicity and Marketing",240.00,,Community Services,Jul-18,
07/07/2018,Digicert Inc,SSL Certificate for *.cambridge.gov.uk,5225,62007,Purchase Card Expense,233.16,,IMD,Jul-18,
09/07/2018,Amazon,Equipment,5225,64070,ICT Hardware,2.58,,IMD,Jul-18,
09/07/2018,Travelodge,Temp Accomodation,H4512,64401,B&B Accomodation,83.00,,Housing,Jul-18,
09/07/2018,Travelodge,Temp Accomodation,H4512,64401,B&B Accomodation,338.00,,Housing,Jul-18,
09/07/2018,Amazon,Equipment,4075,61713,Equipment,37.56,,One Leisure Huntingdon,Jul-18,
09/07/2018,Argos,Equipment,4019,61713,Equipment,9.99,,One Leisure Huntingdon,Jul-18,
09/07/2018,WWW.BUILDERDEPOT.CO.UK,Materials,4021,60201,Maintenance Buildings,212.20,,One Leisure Huntingdon,Jul-18,
10/07/2018,W M MORRISON PLC,supplies,4050,61713,Equipment,18.96,,One Leisure St Ives,Jul-18,
11/07/2018,Travelodge,Temp Accomodation,H4512,64401,B&B Accomodation,155.00,,Housing,Jul-18,
11/07/2018,Amazon,Equipment,4075,61713,Equipment,7.99,,One Leisure Huntingdon,Jul-18,
11/07/2018,Amazon,Equipment,4075,61713,Equipment,29.95,,One Leisure Huntingdon,Jul-18,
11/07/2018,Amazon,Equipment,4075,61713,Equipment,48.51,,One Leisure Huntingdon,Jul-18,
11/07/2018,TAMAR TELECOM,03 Number Rental and costs,5225,62007,Purchase Card Expense,77.98,,IMD,Jul-18,
12/07/2018,COMPANIES HOUSE,Company Search,4138,62007,Purchase Card Expense,13.00,,Corporate Office,Jul-18,
12/07/2018,Travelodge,Temp Accomodation,H4512,64401,B&B Accomodation,126.00,,Housing,Jul-18,
12/07/2018,Amazon,Equipment,4075,61713,Equipment,2.48,,One Leisure Huntingdon,Jul-18,
12/07/2018,Amazon,Equipment,4075,61713,Equipment,5.25,,One Leisure Huntingdon,Jul-18,
12/07/2018,Amazon,Equipment,4075,61713,Equipment,41.45,,One Leisure Huntingdon,Jul-18,
12/07/2018,CARTRIDGE SAVE,Printer Cartridges,5225,62007,Purchase Card Expense,108.52,,IMD,Jul-18,
13/07/2018,J2 eFax Service,eFax Service for City,5225,62007,Purchase Card Expense,13.20,,IMD,Jul-18,
13/07/2018,Amazon,Equipment,4075,61713,Equipment,56.16,,One Leisure Huntingdon,Jul-18,
14/07/2018,Tesco,supplies,4075,61713,Equipment,3.85,,One Leisure Huntingdon,Jul-18,
16/07/2018,Amazon,Equipment,4138,62007,Purchase Card Expense,16.48,,Corporate Office,Jul-18,
16/07/2018,Travelodge,Temp Accomodation,H4512,64401,B&B Accomodation,195.50,,Housing,Jul-18,
16/07/2018,Be My Bear,Equipment,4021,60201,Maintenance Buildings,84.90,,One Leisure Huntingdon,Jul-18,
16/07/2018,Umbraco,Website Tool for 3 Councils,5225,62007,Purchase Card Expense,369.00,,IMD,Jul-18,
17/07/2018,Travelodge,Temp Accomodation,H4512,64401,B&B Accomodation,437.00,,Housing,Jul-18,
17/07/2018,Travelodge,Temp Accomodation,H4512,64401,B&B Accomodation,450.00,,Housing,Jul-18,
17/07/2018,Travelodge,Temp Accomodation,H4512,64401,B&B Accomodation,506.00,,Housing,Jul-18,
18/07/2018,Travelodge,Temp Accomodation,H4512,64401,B&B Accomodation,481.75,,Housing,Jul-18,
18/07/2018,Travelodge,Temp Accomodation,H4512,64401,B&B Accomodation,729.00,,Housing,Jul-18,
18/07/2018,WWW.PARTYPACKS.CO.UK,supplies,4050,61713,Equipment,33.89,,One Leisure St Ives,Jul-18,
18/07/2018,Amazon,Equipment,4075,61713,Equipment,109.98,,One Leisure Huntingdon,Jul-18,
18/07/2018,VINCI ADDENBROOKES HOS,Parking,4145,62007,Purchase Card Expense,3.00,,Corporate Office,Jul-18,
18/07/2018,B & Q,Materials,4021,60201,Maintenance Buildings,19.00,,One Leisure Huntingdon,Jul-18,
18/07/2018,WWW.IKEA.COM,Office Equipment,4021,60201,Maintenance Buildings,45.95,,One Leisure Huntingdon,Jul-18,
18/07/2018,WICKES,Materials,4021,60201,Maintenance Buildings,146.53,,One Leisure Huntingdon,Jul-18,
19/07/2018,CHARTERED MNGMENT,Course,5220,60115,Staff Training and Devlopment,206.00,,Human Resources,Jul-18,
20/07/2018,WWW.LEADERS.CO.UK/PAGE,Homeless Prevention,H4462,64403,Homeless Prevention Payments,189.00,,Housing,Jul-18,
20/07/2018,Travelodge,Temp Accomodation,H4512,64401,B&B Accomodation,322.00,,Housing,Jul-18,
20/07/2018,WWW.THESAFETYCENTRE.CO,supplies,4050,61713,Equipment,32.94,,One Leisure St Ives,Jul-18,
20/07/2018,Argos,Equipment,4019,61713,Equipment,-9.99,,One Leisure Huntingdon,Jul-18,
22/07/2018,Amazon,Equipment,4075,61713,Equipment,7.99,,One Leisure Huntingdon,Jul-18,
23/07/2018,Mailchimp,Automated Email and Monthly Suscription,5225,62007,Purchase Card Expense,38.77,,IMD,Jul-18,
23/07/2018,SECURITY INDUSTRY,Subscription,4185,64800,Membersip and Subscription,220.00,,Community Services,Jul-18,
23/07/2018,Travelodge,Temp Accomodation,H4512,64401,B&B Accomodation,157.00,,Housing,Jul-18,
23/07/2018,Travelodge,Temp Accomodation,H4512,64401,B&B Accomodation,470.00,,Housing,Jul-18,
23/07/2018,DVLA,Vehicle Licence,4327,60907,Other Vehicle Costs,252.50,,Operations,Jul-18,
23/07/2018,DVLA,Vehicle Licence,4327,60907,Other Vehicle Costs,252.50,,Operations,Jul-18,
23/07/2018,DVLA,Vehicle Licence,4327,60907,Other Vehicle Costs,252.50,,Operations,Jul-18,
23/07/2018,DVLA,Vehicle Licence,4327,60907,Other Vehicle Costs,252.50,,Operations,Jul-18,
23/07/2018,DVLA,Vehicle Licence,4327,60907,Other Vehicle Costs,252.50,,Operations,Jul-18,
24/07/2018,MSFT *<E030068X2F>,Microsoft Software,5225,64071,ICT Software,"2,196.00",,IMD,Jul-18,
24/07/2018,Travelodge,Temp Accomodation,H4512,64401,B&B Accomodation,431.00,,Housing,Jul-18,
24/07/2018,WWW.CONCEPT2.CO.UK,Equipment,4021,60201,Maintenance Buildings,11.50,,One Leisure Huntingdon,Jul-18,
24/07/2018,ATSEUROMASTER.CO.U,Vehicle Repairs,4343,60904,Vehicle Repairs and Maintenance,88.44,,Operations,Jul-18,
25/07/2018,Travelodge,Temp Accomodation,H4512,64401,B&B Accomodation,69.00,,Housing,Jul-18,
25/07/2018,Travelodge,Temp Accomodation,H4512,64401,B&B Accomodation,428.00,,Housing,Jul-18,
26/07/2018,Travelodge,Temp Accomodation,H4512,64401,B&B Accomodation,55.00,,Housing,Jul-18,
26/07/2018,Travelodge,Temp Accomodation,H4512,64401,B&B Accomodation,63.00,,Housing,Jul-18,
26/07/2018,Hinchingbrooke Healthcare,Parking,4145,62007,Purchase Card Expense,2.90,,Corporate Office,Jul-18,
26/07/2018,Hoo Suite,Marketing,4010,62005,"Advertising, Publicity and Marketing",142.80,,One Leisure Huntingdon,Jul-18,
26/07/2018,Atlassian,Cloud and JIRA Services,5225,62007,Purchase Card Expense,90.74,,IMD,Jul-18,
26/07/2018,VOLVO GROUP,Vehicle Parts,4343,61713,Equipment,240.79,,Operations,Jul-18,
27/07/2018,GitHub,Monthly Subscription for 7 Licences,5225,62007,Purchase Card Expense,33.84,,IMD,Jul-18,
27/07/2018,Travelodge,Temp Accomodation,H4512,64401,B&B Accomodation,181.00,,Housing,Jul-18,
27/07/2018,Travelodge,Temp Accomodation,H4512,64401,B&B Accomodation,234.00,,Housing,Jul-18,
27/07/2018,Travelodge,Temp Accomodation,H4512,64401,B&B Accomodation,522.00,,Housing,Jul-18,
27/07/2018,Amazon,Equipment,4050,61713,Equipment,34.94,,One Leisure St Ives,Jul-18,
27/07/2018,WWW.GETTYIMAGES.COM,Marketing,4021,60201,Maintenance Buildings,70.00,,One Leisure Huntingdon,Jul-18,
29/07/2018,Bitrix,Web-based PM Tool,5225,64071,ICT Software,156.62,,IMD,Jul-18,
30/07/2018,Travelodge,Temp Accomodation,H4512,64401,B&B Accomodation,55.00,,Housing,Jul-18,
30/07/2018,Travelodge,Temp Accomodation,H4512,64401,B&B Accomodation,83.00,,Housing,Jul-18,
30/07/2018,Travelodge,Temp Accomodation,H4512,64401,B&B Accomodation,249.00,,Housing,Jul-18,
30/07/2018,WICKES,Materials,4021,60201,Maintenance Buildings,30.00,,One Leisure Huntingdon,Jul-18,
31/07/2018,Travelodge,Temp Accomodation,H4512,64401,B&B Accomodation,388.00,,Housing,Jul-18,
31/07/2018,Travelodge,Temp Accomodation,H4512,64401,B&B Accomodation,431.00,,Housing,Jul-18,
31/07/2018,Travelodge,Temp Accomodation,H4512,64401,B&B Accomodation,478.00,,Housing,Jul-18,
31/07/2018,Travelodge,Temp Accomodation,H4512,64401,B&B Accomodation,485.00,,Housing,Jul-18,
31/07/2018,Travelodge,Temp Accomodation,H4512,64401,B&B Accomodation,616.00,,Housing,Jul-18,
31/07/2018,Ticket Source,supplies,4050,61713,Equipment,68.10,,One Leisure St Ives,Jul-18,
31/07/2018,Facebook,Marketing,4018,62005,"Advertising, Publicity and Marketing",60.00,,Active Leisure,Jul-18,
31/07/2018,Facebook,Marketing,4010,62005,"Advertising, Publicity and Marketing",1.18,,One Leisure Huntingdon,Jul-18,
31/07/2018,Facebook,Marketing,4010,62005,"Advertising, Publicity and Marketing",37.57,,One Leisure Huntingdon,Jul-18,
31/07/2018,Mailchimp,Marketing,4010,62005,"Advertising, Publicity and Marketing",46.17,,One Leisure Huntingdon,Jul-18,
01/08/2018,KILLGERMS CHEMICAL,Chemicals,5220,60115,Staff Training and Devlopment,168.00,,Human Resources,Jul-18,
01/08/2018,Travelodge,Temp Accomodation,H4512,64401,B&B Accomodation,-388.00,,Housing,Jul-18,
01/08/2018,Travelodge,Temp Accomodation,H4512,64401,B&B Accomodation,364.00,,Housing,Jul-18,
01/08/2018,Sainsburys,Hospitality,4145,61903,Hospitality,12.10,,Corporate Office,Jul-18,
01/08/2018,WILKO RETAIL LIMIT,Hospitality,4145,61903,Hospitality,13.50,,Corporate Office,Jul-18,
02/08/2018,Travelodge,Temp Accomodation,H4512,64401,B&B Accomodation,638.00,,Housing,Jul-18,
02/08/2018,LILLIAN ROSE FLOWERS,Compassionate Gift,4143,61713,Equipment,28.98,,Operations,Jul-18,
03/08/2018,Travelodge,Temp Accomodation,H4406,64401,B&B Accomodation,519.00,,Housing,Aug-18,
03/08/2018,Travelodge,Temp Accomodation,H4404,64401,B&B Accomodation,558.00,,Housing,Aug-18,
03/08/2018,POST OFFICE COUNTER HUNT,Postage,4343,61713,Equipment,90.00,,Operations,Aug-18,
07/08/2018,Travelodge,Temp Accomodation,H4390,64401,B&B Accomodation,-417.00,,Housing,Aug-18,
07/08/2018,MDS BATTERY LTD    ,Rechargable Battery,5224,64070,ICT Hardware,37.99,,IMD,Aug-18,
07/08/2018,AXOSOFT GITKRAKEN,Software development tools,5225,64071,ICT Software,39.04,,IMD,Aug-18,
07/08/2018,A2B OFFICE TECHNOL BURY,Equipment,4343,61713,Equipment,30.47,,Operations,Aug-18,
08/08/2018,Travelodge,Temp Accomodation,H4406,64401,B&B Accomodation,83.00,,Housing,Aug-18,
08/08/2018,STAMPS DIRECT LTD NORWIC,supplies,4050,61709,Materials,87.70,,One Leisure St Ives,Aug-18,
08/08/2018,Digicert Inc,SSL Cerificate for *scambs.gov.uk,5237,64071,ICT Software,252.32,,IMD,Aug-18,
09/08/2018,Travelodge,Temp Accomodation,H4406,64401,B&B Accomodation,352.00,,Housing,Aug-18,
09/08/2018,Amazon,Equipment,4049,61900,Catering Supplies,77.81,,One Leisure St Ives,Aug-18,
09/08/2018,Amazon,Equipment,4050,61709,Materials,82.16,,One Leisure St Ives,Aug-18,
09/08/2018,POST OFFICE COUNTER HUNT,Postage,5184,64100,Postage and Courier Services,250.00,,Corporate Office,Aug-18,
10/08/2018,Amazon,Equipment,4010,62005,"Advertising, Publicity and Marketing",129.00,,Corporate Office,Aug-18,
10/08/2018,Travelodge,Temp Accomodation,H4406,64401,B&B Accomodation,-248.00,,Housing,Aug-18,
10/08/2018,Travelodge,Temp Accomodation,H4414,64401,B&B Accomodation,166.00,,Housing,Aug-18,
10/08/2018,Travelodge,Temp Accomodation,H4406,64401,B&B Accomodation,189.00,,Housing,Aug-18,
10/08/2018,Travelodge,Temp Accomodation,H4406,64401,B&B Accomodation,248.00,,Housing,Aug-18,
10/08/2018,Travelodge,Temp Accomodation,H3126,64401,B&B Accomodation,469.00,,Housing,Aug-18,
10/08/2018,Travelodge,Temp Accomodation,H4391,64401,B&B Accomodation,527.00,,Housing,Aug-18,
10/08/2018,Travelodge,Temp Accomodation,H4409,64401,B&B Accomodation,699.00,,Housing,Aug-18,
10/08/2018,Amazon,Equipment,4050,61709,Materials,8.97,,One Leisure St Ives,Aug-18,
10/08/2018,AXOSOFT GITKRAKEN,Software development tools,5225,64071,ICT Software,39.34,,IMD,Aug-18,
10/08/2018,Tesco,Equipment,4343,61713,Equipment,85.00,,Operations,Aug-18,
11/08/2018,Amazon,Equipment,4010,62005,"Advertising, Publicity and Marketing",2.39,,Corporate Office,Aug-18,
11/08/2018,Facebook,Marketing,4010,62005,"Advertising, Publicity and Marketing",0.02,,One Leisure Huntingdon,Aug-18,
11/08/2018,Facebook,Marketing,4010,62005,"Advertising, Publicity and Marketing",14.98,,One Leisure Huntingdon,Aug-18,
11/08/2018,Facebook,Marketing,4010,62005,"Advertising, Publicity and Marketing",20.00,,One Leisure Huntingdon,Aug-18,
11/08/2018,Digicert Inc,SSL Certificate for *.cambridge.gov.uk,5229,64071,ICT Software,363.36,,IMD,Aug-18,
12/08/2018,SOLARWINDS,IT Management Software,5225,64071,ICT Software,373.45,,IMD,Aug-18,
13/08/2018,Amazon,Equipment,4343,60907,Other Vehicle Costs,33.69,,Operations,Aug-18,
13/08/2018,Ticket Source,Event,4050,64079,Entertainments,1.00,,One Leisure St Ives,Aug-18,
13/08/2018,J2 eFax Service,eFax Service for City,5222,64071,ICT Software,13.20,,IMD,Aug-18,
13/08/2018,1&1 INTERNET LIMITED,Domain Registration,5225,64071,ICT Software,24.24,,IMD,Aug-18,
13/08/2018,INFOGRAM.COM,Reports Software,5225,64071,ICT Software,184.41,,IMD,Aug-18,
13/08/2018,INFOGRAM.COM,Reports Software,5225,64071,ICT Software,184.41,,IMD,Aug-18,
14/08/2018,LINKEDIN,Recruitment,5096,69150,Other Services,482.04,,Human Resources,Aug-18,
14/08/2018,Travelodge,Temp Accomodation,H4416,64401,B&B Accomodation,212.00,,Housing,Aug-18,
14/08/2018,Travelodge,Temp Accomodation,H4415,64401,B&B Accomodation,442.00,,Housing,Aug-18,
14/08/2018,Facebook,Marketing,4010,62005,"Advertising, Publicity and Marketing",1.50,,One Leisure Huntingdon,Aug-18,
14/08/2018,Facebook,Marketing,4010,62005,"Advertising, Publicity and Marketing",38.50,,One Leisure Huntingdon,Aug-18,
14/08/2018,POST OFFICE COUNTER HUNT,Postage,4343,61713,Equipment,308.00,,Operations,Aug-18,
15/08/2018,Travelodge,Temp Accomodation,H4391,64401,B&B Accomodation,-263.00,,Housing,Aug-18,
15/08/2018,Travelodge,Temp Accomodation,H3126,64401,B&B Accomodation,242.00,,Housing,Aug-18,
15/08/2018,Travelodge,Temp Accomodation,H4391,64401,B&B Accomodation,242.00,,Housing,Aug-18,
15/08/2018,Travelodge,Temp Accomodation,H4391,64401,B&B Accomodation,275.00,,Housing,Aug-18,
15/08/2018,Travelodge,Temp Accomodation,H4416,64401,B&B Accomodation,428.00,,Housing,Aug-18,
15/08/2018,Travelodge,Temp Accomodation,H4406,64401,B&B Accomodation,521.00,,Housing,Aug-18,
15/08/2018,W M MORRISON PLC,supplies,4052,61713,Equipment,42.10,,One Leisure St Ives,Aug-18,
15/08/2018,Amazon,Equipment,4049,61900,Catering Supplies,59.94,,One Leisure St Ives,Aug-18,
15/08/2018,Umbraco,Website Tool for 3 Councils,5225,64071,ICT Software,369.00,,IMD,Aug-18,
16/08/2018,LINKEDIN,Recruitment,5096,69150,Other Services,26.52,,Human Resources,Aug-18,
16/08/2018,Travelodge,Temp Accomodation,H4418,64401,B&B Accomodation,-171.00,,Housing,Aug-18,
16/08/2018,Travelodge,Temp Accomodation,H4415,64401,B&B Accomodation,242.00,,Housing,Aug-18,
16/08/2018,Travelodge,Temp Accomodation,H4418,64401,B&B Accomodation,630.00,,Housing,Aug-18,
16/08/2018,Travelodge,Temp Accomodation,H4417,64401,B&B Accomodation,767.00,,Housing,Aug-18,
16/08/2018,Marks & Spencer PLC,Hospitality,4164,61903,Hospitality,47.50,,Corporate Office,Aug-18,
16/08/2018,B & Q,Materials,4021,60201,Maintenance Buildings,30.84,,One Leisure Huntingdon,Aug-18,
16/08/2018,APPLE ONLINE STORE GBP 0,Equipment,4010,62005,"Advertising, Publicity and Marketing",79.00,,One Leisure Huntingdon,Aug-18,
16/08/2018,PIKTOCHART,Graphical Software,5227,64071,ICT Software,32.45,,IMD,Aug-18,
16/08/2018,WWW.ERS-ONLINE.CO.UK,Barcode Software,5224,64070,ICT Hardware,62.63,,IMD,Aug-18,
17/08/2018,STEVES PRIVATE HIR HUNTI,Taxi,5269,62400,Consultancy Fees,87.20,,Community Services,Aug-18,
17/08/2018,Tesco,supplies,4050,62000,"Clothes, Uniform and Laundry",14.00,,One Leisure St Ives,Aug-18,
17/08/2018,B & Q,Materials,4021,60201,Maintenance Buildings,22.50,,One Leisure Huntingdon,Aug-18,
17/08/2018,SPORTSDIRECT,Equipment,4021,60201,Maintenance Buildings,40.99,,One Leisure Huntingdon,Aug-18,
17/08/2018,ONELESIUREHUNTING PLUMB,Repairs,4021,60201,Maintenance Buildings,75.06,,One Leisure Huntingdon,Aug-18,
17/08/2018,WP-KALNET4U LTD  ,0300 service for Building Control,5222,64077,Landline Rental,17.99,,IMD,Aug-18,
20/08/2018,Travelodge,Temp Accomodation,H4466,64401,B&B Accomodation,185.00,,Housing,Aug-18,
21/08/2018,Travelodge,Temp Accomodation,H4391,64401,B&B Accomodation,-263.00,,Housing,Aug-18,
22/08/2018,Amazon,Equipment,4075,61713,Equipment,7.99,,One Leisure Huntingdon,Aug-18,
22/08/2018,Marks & Spencer PLC,Hospitality,4164,61903,Hospitality,10.35,,Corporate Office,Aug-18,
22/08/2018,POST OFFICE COUNTER HUNT,Postage,5184,64100,Postage and Courier Services,241.00,,Corporate Office,Aug-18,
22/08/2018,THE PRIORY GROUP,Medical,4010,62005,"Advertising, Publicity and Marketing",13.98,,One Leisure Huntingdon,Aug-18,
22/08/2018,COCOBOLO SOFTWARE LLC,Software Patches,5222,64071,ICT Software,398.03,,IMD,Aug-18,
22/08/2018,COCOBOLO SOFTWARE LLC,Software Patches,5223,64071,ICT Software,398.03,,IMD,Aug-18,
23/08/2018,Travelodge,Temp Accomodation,H4391,64401,B&B Accomodation,96.00,,Housing,Aug-18,
23/08/2018,Travelodge,Temp Accomodation,H4415,64401,B&B Accomodation,224.00,,Housing,Aug-18,
23/08/2018,Travelodge,Temp Accomodation,H4423,64401,B&B Accomodation,314.00,,Housing,Aug-18,
23/08/2018,Travelodge,Temp Accomodation,H4391,64401,B&B Accomodation,531.00,,Housing,Aug-18,
23/08/2018,DVLA,Vehicle Licence,4343,60907,Other Vehicle Costs,252.50,,Operations,Aug-18,
23/08/2018,DVLA,Vehicle Licence,4343,60907,Other Vehicle Costs,252.50,,Operations,Aug-18,
23/08/2018,DVLA,Vehicle Licence,4343,60907,Other Vehicle Costs,252.50,,Operations,Aug-18,
23/08/2018,DVLA,Vehicle Licence,4343,60907,Other Vehicle Costs,252.50,,Operations,Aug-18,
23/08/2018,WWW.SHOP.MARSHALLS.CO. L,Parts,4343,60907,Other Vehicle Costs,437.88,,Operations,Aug-18,
23/08/2018,DVLA,Vehicle Licence,4343,60907,Other Vehicle Costs,652.50,,Operations,Aug-18,
23/08/2018,DVLA,Vehicle Licence,4343,60907,Other Vehicle Costs,652.50,,Operations,Aug-18,
23/08/2018,DVLA,Vehicle Licence,4343,60907,Other Vehicle Costs,652.50,,Operations,Aug-18,
23/08/2018,DVLA,Vehicle Licence,4343,60907,Other Vehicle Costs,652.50,,Operations,Aug-18,
23/08/2018,W M MORRISON PLC,supplies,4049,61900,Catering Supplies,4.10,,One Leisure St Ives,Aug-18,
23/08/2018,Mailchimp,Automated Email and Monthly Suscription,5222,64071,ICT Software,46.54,,IMD,Aug-18,
24/08/2018,Marks & Spencer PLC,Hospitality,4164,61902,Catering Services,35.50,,Corporate Office,Aug-18,
24/08/2018,MSFT :<E03006FVBJ> MSBIL,Microsoft Software,5225,64071,ICT Software,182.40,,IMD,Aug-18,
24/08/2018,Travelodge,Temp Accomodation,H4391,64401,B&B Accomodation,-96.00,,Housing,Aug-18,
24/08/2018,Travelodge,Temp Accomodation,H4391,64401,B&B Accomodation,55.00,,Housing,Aug-18,
24/08/2018,Travelodge,Temp Accomodation,H4424,64401,B&B Accomodation,374.00,,Housing,Aug-18,
24/08/2018,W M MORRISON PLC,supplies,4049,61900,Catering Supplies,10.50,,One Leisure St Ives,Aug-18,
24/08/2018,ALLIESCOMPUTING,Hardware,5222,64071,ICT Software,246.00,,IMD,Aug-18,
24/08/2018,Be My Bear,Equipment,4050,61709,Materials,97.18,,One Leisure St Ives,Aug-18,
25/08/2018,Facebook,Marketing,4010,62005,"Advertising, Publicity and Marketing",25.00,,One Leisure Huntingdon,Aug-18,
26/08/2018,Hoo Suite,Marketing,4010,62005,"Advertising, Publicity and Marketing",142.80,,One Leisure Huntingdon,Aug-18,
26/08/2018,Atlassian,Cloud and JIRA Services,5225,64071,ICT Software,92.91,,IMD,Aug-18,
27/08/2018,GitHub,Monthly Subscription for 7 Licences,5225,64071,ICT Software,34.51,,IMD,Aug-18,
28/08/2018,WWW OPPASSESSMENT EU COM,MBTI,5220,60115,Staff Training and Devlopment,309.60,,Human Resources,Aug-18,
28/08/2018,Travelodge,Temp Accomodation,H4417,64401,B&B Accomodation,431.00,,Housing,Aug-18,
28/08/2018,Travelodge,Temp Accomodation,H4423,64401,B&B Accomodation,964.00,,Housing,Aug-18,
28/08/2018,WWW.GETTYIMAGES.COM,Marketing,4010,62005,"Advertising, Publicity and Marketing",70.00,,One Leisure Huntingdon,Aug-18,
29/08/2018,WWW.CONNEVANS.COM MERSTH,Headphones,5220,60115,Staff Training and Devlopment,46.98,,Human Resources,Aug-18,
29/08/2018,Travelodge,Temp Accomodation,H4415,64401,B&B Accomodation,338.00,,Housing,Aug-18,
29/08/2018,Travelodge,Temp Accomodation,H4417,64401,B&B Accomodation,432.00,,Housing,Aug-18,
29/08/2018,POST OFFICE COUNTER HUNT,Postage,4343,61713,Equipment,207.50,,Operations,Aug-18,
30/08/2018,CLUBKING LTD HERTFORD 14,supplies,4050,61709,Materials,144.46,,One Leisure St Ives,Aug-18,
31/08/2018,Travelodge,Temp Accomodation,H4409,64401,B&B Accomodation,-397.00,,Housing,Aug-18,
31/08/2018,Travelodge,Temp Accomodation,H4416,64401,B&B Accomodation,-234.00,,Housing,Aug-18,
31/08/2018,Travelodge,Temp Accomodation,H4424,64401,B&B Accomodation,66.00,,Housing,Aug-18,
31/08/2018,Travelodge,Temp Accomodation,H4429,64401,B&B Accomodation,596.00,,Housing,Aug-18,
31/08/2018,Travelodge,Temp Accomodation,H4391,64401,B&B Accomodation,598.00,,Housing,Aug-18,
31/08/2018,W M MORRISON PLC,supplies,4050,61709,Materials,77.30,,One Leisure St Ives,Aug-18,
31/08/2018,Facebook,Marketing,4010,62005,"Advertising, Publicity and Marketing",21.45,,One Leisure Huntingdon,Aug-18,
31/08/2018,Facebook,Marketing,4010,62005,"Advertising, Publicity and Marketing",24.99,,One Leisure Huntingdon,Aug-18,
31/08/2018,Mailchimp,Marketing,4010,62005,"Advertising, Publicity and Marketing",138.30,,One Leisure Huntingdon,Aug-18,
02/09/2018,Travelodge,Temp Accomodation,H4430,64401,B&B Accomodation,49.00,,Housing,Aug-18,
03/09/2018,Travelodge,Temp Accomodation,H4430,64401,B&B Accomodation,504.00,,Housing,Sep-18,
03/09/2018,Travelodge,Temp Accomodation,H4358,64401,B&B Accomodation,504.00,,Housing,Sep-18,
04/09/2018,Travelodge,Temp Accomodation,H3126,64401,B&B Accomodation,-175.00,,Housing,Sep-18,
05/09/2018,Travelodge,Temp Accomodation,H4415,64401,B&B Accomodation,181.00,,Housing,Sep-18,
05/09/2018,ACCENT HOUSING,RIA,H4379,64405,Rental Deposit Loan Payments,194.40,,Housing,Sep-18,
05/09/2018,Bitrix,Web-based PM Tool,5225,64071,ICT Software,160.25,,IMD,Sep-18,
05/09/2018,screwfix,Materials,4343,61713,Equipment,49.98,,Operations,Sep-18,
06/09/2018,Travelodge,Temp Accomodation,H4433,64401,B&B Accomodation,678.00,,Housing,Sep-18,
06/09/2018,Ticket Source,BRING BK 60'S EVENT CANC,4050,64079,Entertainments,6.00,,One Leisure St Ives,Sep-18,
07/09/2018,Travelodge,Temp Accomodation,H4415,64401,B&B Accomodation,-642.00,,Housing,Sep-18,
07/09/2018,Travelodge,Temp Accomodation,H4435,64401,B&B Accomodation,171.00,,Housing,Sep-18,
07/09/2018,Travelodge,Temp Accomodation,H4434,64401,B&B Accomodation,510.00,,Housing,Sep-18,
07/09/2018,Travelodge,Temp Accomodation,H4415,64401,B&B Accomodation,642.00,,Housing,Sep-18,
09/09/2018,Amazon,CATERING PACK,4049,61900,Catering Supplies,31.47,,One Leisure St Ives,Sep-18,
10/09/2018,Travelodge,Temp Accomodation,H4439,64401,B&B Accomodation,55.00,,Housing,Sep-18,
10/09/2018,MUIR GROUP HA LTD,RIA,H4415,64405,Rental Deposit Loan Payments,202.96,,Housing,Sep-18,
10/09/2018,Travelodge,Temp Accomodation,H4358,64401,B&B Accomodation,418.00,,Housing,Sep-18,
10/09/2018,Travelodge,Temp Accomodation,H4430,64401,B&B Accomodation,652.00,,Housing,Sep-18,
10/09/2018,W M MORRISON STORE,BURGESS FOOD CONF,4049,61900,Catering Supplies,31.60,,One Leisure St Ives,Sep-18,
10/09/2018,Amazon,Equipment,5223,64070,ICT Hardware,11.98,,IMD,Sep-18,
10/09/2018,WP-KALNET4U LTD  ,0300 service for Building Control,5222,64077,Landline Rental,17.99,,IMD,Sep-18,
10/09/2018,WWW.ICO.GOV.UK          ,Data protection,5228,64071,ICT Software,40.00,,IMD,Sep-18,
10/09/2018,BOX LTD,Hardware,5223,64070,ICT Hardware,377.94,,IMD,Sep-18,
11/09/2018,MUIR GROUP HA LTD,RIA,H4263,64405,Rental Deposit Loan Payments,382.55,,Housing,Sep-18,
11/09/2018,Travelodge,Temp Accomodation,H4384,64401,B&B Accomodation,576.00,,Housing,Sep-18,
11/09/2018,DVLA,Vehicle Licence,4343,60907,Other Vehicle Costs,652.50,,Operations,Sep-18,
11/09/2018,APP QR CODE GENERATOR ,Equipment,4021,60201,Maintenance Buildings,55.21,,One Leisure Huntingdon,Sep-18,
11/09/2018,B & Q,Materials,4021,60201,Maintenance Buildings,124.45,,One Leisure Huntingdon,Sep-18,
12/09/2018,Travelodge,Temp Accomodation,H4445,64401,B&B Accomodation,488.00,,Housing,Sep-18,
12/09/2018,Travelodge,Temp Accomodation,H4423,64401,B&B Accomodation,723.00,,Housing,Sep-18,
12/09/2018,Travelodge,Temp Accomodation,H4391,64401,B&B Accomodation,736.00,,Housing,Sep-18,
12/09/2018,Travelodge,Temp Accomodation,H4417,64401,B&B Accomodation,771.00,,Housing,Sep-18,
12/09/2018,Amazon,Equipment,4075,61713,Equipment,29.95,,One Leisure Huntingdon,Sep-18,
13/09/2018,Travelodge,Temp Accomodation,H4429,64401,B&B Accomodation,-235.00,,Housing,Sep-18,
13/09/2018,Travelodge,Temp Accomodation,H4432,64401,B&B Accomodation,238.00,,Housing,Sep-18,
13/09/2018,J2 eFax Service,eFax Service for City,5222,64071,ICT Software,13.20,,IMD,Sep-18,
13/09/2018,THE SSL STORE.COM      ,ssl certificate,5229,64071,ICT Software,80.62,,IMD,Sep-18,
13/09/2018,WWW.JPARKERS.CO.UK,Plants,4343,61713,Equipment,209.69,,Operations,Sep-18,
14/09/2018,KRISPY KREME,Hospitality,4138,62007,Purchase Card Expense,23.70,,Corporate Office,Sep-18,
14/09/2018,Travelodge,Temp Accomodation,H4435,64401,B&B Accomodation,-171.00,,Housing,Sep-18,
14/09/2018,Travelodge,Temp Accomodation,H4430,64401,B&B Accomodation,-107.00,,Housing,Sep-18,
14/09/2018,Luminus Homes,RIA,H4422,64405,Rental Deposit Loan Payments,41.60,,Housing,Sep-18,
14/09/2018,Travelodge,Temp Accomodation,H4384,64401,B&B Accomodation,140.00,,Housing,Sep-18,
14/09/2018,Travelodge,Temp Accomodation,H4432,64401,B&B Accomodation,504.00,,Housing,Sep-18,
14/09/2018,POLICE-SUPPLIES,Equipment,4343,60907,Other Vehicle Costs,229.23,,Operations,Sep-18,
14/09/2018,DVLA,Vehicle Licence,4343,60907,Other Vehicle Costs,252.50,,Operations,Sep-18,
14/09/2018,DVLA,Vehicle Licence,4343,60907,Other Vehicle Costs,252.50,,Operations,Sep-18,
14/09/2018,DVLA,Vehicle Licence,4343,60907,Other Vehicle Costs,252.50,,Operations,Sep-18,
14/09/2018,DVLA,Vehicle Licence,4343,60907,Other Vehicle Costs,652.50,,Operations,Sep-18,
14/09/2018,DVLA,Vehicle Licence,4343,60907,Other Vehicle Costs,652.50,,Operations,Sep-18,
14/09/2018,Umbraco,Website Tool for 3 Councils,5225,64071,ICT Software,369.00,,IMD,Sep-18,
17/09/2018,Travelodge,Temp Accomodation,H4358,64401,B&B Accomodation,-227.00,,Housing,Sep-18,
17/09/2018,Travelodge,Temp Accomodation,H4358,64401,B&B Accomodation,-107.00,,Housing,Sep-18,
17/09/2018,Travelodge,Temp Accomodation,H4358,64401,B&B Accomodation,107.00,,Housing,Sep-18,
17/09/2018,Travelodge,Temp Accomodation,H4358,64401,B&B Accomodation,227.00,,Housing,Sep-18,
17/09/2018,Travelodge,Temp Accomodation,H4430,64401,B&B Accomodation,237.00,,Housing,Sep-18,
17/09/2018,Travelodge,Temp Accomodation,H4433,64401,B&B Accomodation,285.00,,Housing,Sep-18,
17/09/2018,Travelodge,Temp Accomodation,H4434,64401,B&B Accomodation,287.50,,Housing,Sep-18,
17/09/2018,Travelodge,Temp Accomodation,H4384,64401,B&B Accomodation,513.00,,Housing,Sep-18,
17/09/2018,AJPRODUCTSCOUK,Office Furniture,4021,60201,Maintenance Buildings,294.00,,One Leisure Huntingdon,Sep-18,
18/09/2018,Travelodge,Temp Accomodation,H4447,64401,B&B Accomodation,96.00,,Housing,Sep-18,
18/09/2018,Travelodge,Temp Accomodation,H4447,64401,B&B Accomodation,96.00,,Housing,Sep-18,
18/09/2018,SPAR WARBOYS ,MILK BURGESS BAR,4049,61900,Catering Supplies,2.00,,One Leisure St Ives,Sep-18,
18/09/2018,Sainsburys,Hospitality,4145,61903,Hospitality,10.50,,Corporate Office,Sep-18,
18/09/2018,WWW.CORIDO.CO.UK ,Furniture,4343,61713,Equipment,329.99,,Operations,Sep-18,
19/09/2018,Amazon,Equipment,4075,61713,Equipment,55.92,,One Leisure Huntingdon,Sep-18,
19/09/2018,MBCDIGITAL,Software,5225,64071,ICT Software,418.80,,IMD,Sep-18,
19/09/2018,WICKES,Materials,4021,60201,Maintenance Buildings,9.59,,One Leisure Huntingdon,Sep-18,
20/09/2018,BPHA LIMITED,RIA,H4339,64405,Rental Deposit Loan Payments,270.76,,Housing,Sep-18,
20/09/2018,GUINNESS NORTHERN,Temp Accomodation,H4227,64405,Rental Deposit Loan Payments,402.40,,Housing,Sep-18,
20/09/2018,Travelodge,Temp Accomodation,H4391,64401,B&B Accomodation,520.00,,Housing,Sep-18,
20/09/2018,Travelodge,Temp Accomodation,H4423,64401,B&B Accomodation,546.00,,Housing,Sep-18,
20/09/2018,Travelodge,Temp Accomodation,H4434,64401,B&B Accomodation,627.00,,Housing,Sep-18,
20/09/2018,Travelodge,Temp Accomodation,H4433,64401,B&B Accomodation,697.00,,Housing,Sep-18,
20/09/2018,Amazon,Equipment,4075,61713,Equipment,8.95,,One Leisure Huntingdon,Sep-18,
20/09/2018,ESEDIRECT,Work Wear,4343,61713,Equipment,440.12,,Operations,Sep-18,
21/09/2018,Travelodge,Temp Accomodation,H4433,64401,B&B Accomodation,-697.00,,Housing,Sep-18,
21/09/2018,Premier Inn,Premier Inn conference accommodation,4145,64300,Conference Expenses,89.00,,Corporate Office,Sep-18,
22/09/2018,Amazon,Equipment,4075,61713,Equipment,7.99,,One Leisure Huntingdon,Sep-18,
23/09/2018,TOOLSTATION LTD,Equipment,4019,61713,Equipment,5.99,,One Leisure Huntingdon,Sep-18,
23/09/2018,Mailchimp,Automated Email and Monthly Suscription,5222,64071,ICT Software,42.45,,IMD,Sep-18,
24/09/2018,THE MAP HOUSE ,MAP,4138,62007,Purchase Card Expense,125.00,,Corporate Office,Sep-18,
25/09/2018,Travelodge,Temp Accomodation,H4417,64401,B&B Accomodation,199.00,,Housing,Sep-18,
25/09/2018,Travelodge,Temp Accomodation,H4384,64401,B&B Accomodation,283.00,,Housing,Sep-18,
25/09/2018,Premier Inn,Premier Inn conference accommodation,4145,64300,Conference Expenses,-81.99,,Corporate Office,Sep-18,
25/09/2018,MDS BATTERY LTD    ,Rechargable Battery,5224,64070,ICT Hardware,37.99,,IMD,Sep-18,
26/09/2018,Travelodge,Temp Accomodation,H4417,64401,B&B Accomodation,212.00,,Housing,Sep-18,
26/09/2018,WWW.GETTYIMAGES.COM,Marketing,4019,60201,Maintenance Buildings,70.00,,One Leisure Huntingdon,Sep-18,
26/09/2018,Hoo Suite,Marketing,4010,62005,"Advertising, Publicity and Marketing",142.80,,One Leisure Huntingdon,Sep-18,
26/09/2018,APPLIANCEDIRECT CO ,Equipment,4021,60201,Maintenance Buildings,196.87,,One Leisure Huntingdon,Sep-18,
26/09/2018,Atlassian,Cloud and JIRA Services,5225,64071,ICT Software,15.67,,IMD,Sep-18,
27/09/2018,OPPASSESSMENT,MBTI,5220,60115,Staff Training and Devlopment,206.40,,Human Resources,Sep-18,
27/09/2018,Travelodge,Temp Accomodation,H4491,64401,B&B Accomodation,483.00,,Housing,Sep-18,
27/09/2018,GitHub,Monthly Subscription for 7 Licences,5225,64071,ICT Software,33.86,,IMD,Sep-18,
28/09/2018,RICARDO-AEA LTD,Constultancy,5271,62003,"Books, Publications and Resources",30.00,,Community Services,Sep-18,
28/09/2018,Travelodge,Temp Accomodation,H4417,64401,B&B Accomodation,386.00,,Housing,Sep-18,
28/09/2018,Travelodge,Temp Accomodation,H4417,64401,B&B Accomodation,413.00,,Housing,Sep-18,
28/09/2018,Travelodge,Temp Accomodation,H4391,64401,B&B Accomodation,462.00,,Housing,Sep-18,
28/09/2018,Travelodge,Temp Accomodation,H4452,64401,B&B Accomodation,603.00,,Housing,Sep-18,
28/09/2018,WWW.POSTURITE.CO.UK ,Office Equipment,5225,64070,ICT Hardware,74.34,,IMD,Sep-18,
28/09/2018,Digicert Inc,SSL Cerificate for *scambs.gov.uk,5237,64071,ICT Software,315.99,,IMD,Sep-18,
28/09/2018,Amazon,Equipment,4343,61713,Equipment,33.96,,Operations,Sep-18,
28/09/2018,WWW.BLINDPARTS.CO,Blinds,4343,61713,Equipment,125.95,,Operations,Sep-18,
29/09/2018,Bitrix,Web-based PM Tool,5225,64071,ICT Software,157.61,,IMD,Sep-18,
30/09/2018,Facebook,Marketing,4019,61713,Equipment,40.00,,One Leisure Huntingdon,Sep-18,
30/09/2018,Mailchimp,Marketing,4019,61713,Equipment,139.52,,One Leisure Huntingdon,Sep-18,
30/09/2018,Facebook,Marketing,4019,61713,Equipment,293.42,,One Leisure Huntingdon,Sep-18,
01/10/2018,Travelodge,Temp Accomodation,H4492,64401,B&B Accomodation,478.00,,Housing,Sep-18,
01/10/2018,Travelodge,Temp Accomodation,H4423,64401,B&B Accomodation,528.00,,Housing,Sep-18,
01/10/2018,W M MORRISON PLC,supplies,4050,61709,Materials,122.71,,One Leisure St Ives,Sep-18,
02/10/2018,Travelodge,Temp Accomodation,H4491,64401,B&B Accomodation,291.50,,Housing,Sep-18,
02/10/2018,REFORMING PUBLIC S,Conference,4145,64300,Conference Expenses,375.00,,Corporate Office,Sep-18,
03/10/2018,LEXIS NEXIS,Housing Allocation & Homelessness Law &,5278,62003,"Books, Publications and Resources",110.29,,Housing,Oct-18,
03/10/2018,BLINDS 2 GO LTD,Heater,4019,61713,Equipment,41.83,,One Leisure Huntingdon,Oct-18,
03/10/2018,Umbraco,Website Tool for 3 Councils,5225,64071,ICT Software,139.00,,IMD,Oct-18,
04/10/2018,Travelodge,Temp Accomodation,H4462,64401,B&B Accomodation,55.00,,Housing,Oct-18,
04/10/2018,Premier Inn,Premier Inn conference accommodation,4145,64300,Conference Expenses,211.50,,Corporate Office,Oct-18,
05/10/2018,Travelodge,Temp Accomodation,H4417,64401,B&B Accomodation,318.00,,Housing,Oct-18,
05/10/2018,Travelodge,Temp Accomodation,H4434,64401,B&B Accomodation,402.00,,Housing,Oct-18,
05/10/2018,Travelodge,Temp Accomodation,H4391,64401,B&B Accomodation,539.00,,Housing,Oct-18,
06/10/2018,Travelodge,Temp Accomodation,H4466,64401,B&B Accomodation,208.00,,Housing,Oct-18,
06/10/2018,OLD BRIDGE HOTEL,Accomodation,4050,61709,Materials,231.50,,One Leisure St Ives,Oct-18,
08/10/2018,Travelodge,Temp Accomodation,H4492,64401,B&B Accomodation,-337.00,,Housing,Oct-18,
08/10/2018,Travelodge,Temp Accomodation,H4423,64401,B&B Accomodation,240.00,,Housing,Oct-18,
08/10/2018,Travelodge,Temp Accomodation,H4466,64401,B&B Accomodation,318.00,,Housing,Oct-18,
08/10/2018,Premier Inn,Temp Accomodation,H4491,64401,B&B Accomodation,685.00,,Housing,Oct-18,
08/10/2018,Amazon,Equipment,4075,61713,Equipment,129.95,,One Leisure Huntingdon,Oct-18,
08/10/2018,WICKES,Materials,4019,61713,Equipment,14.00,,One Leisure Huntingdon,Oct-18,
08/10/2018,Amazon,Maintenance items,4021,60201,Maintenance Buildings,27.96,,One Leisure Huntingdon,Oct-18,
08/10/2018,TSGN,Rail Ticket London,4164,60012,Employee Allowances,55.90,,Corporate Office,Oct-18,
09/10/2018,ESCAPE-PETERBOROUGH,LA challenge,5220,60115,Staff Training and Devlopment,120.00,,Human Resources,Oct-18,
09/10/2018,Internet,Maintenance items,4021,60201,Maintenance Buildings,54.35,,One Leisure Huntingdon,Oct-18,
09/10/2018,Amazon,Maintenance items,4021,60201,Maintenance Buildings,234.95,,One Leisure Huntingdon,Oct-18,
10/10/2018,Travelodge,Temp Accomodation,H4384,64401,B&B Accomodation,-115.00,,Housing,Oct-18,
10/10/2018,Travelodge,Temp Accomodation,H4469,64401,B&B Accomodation,113.00,,Housing,Oct-18,
10/10/2018,Travelodge,Temp Accomodation,H4423,64401,B&B Accomodation,163.00,,Housing,Oct-18,
10/10/2018,Amazon,Equipment,4075,61713,Equipment,29.99,,One Leisure Huntingdon,Oct-18,
10/10/2018,Amazon,Equipment,5225,64071,ICT Software,7.99,,IMD,Oct-18,
11/10/2018,Travelodge,Temp Accomodation,H4537,64403,Homeless Prevention Payments,216.00,,Housing,Oct-18,
11/10/2018,Travelodge,Temp Accomodation,H4391,64401,B&B Accomodation,501.00,,Housing,Oct-18,
11/10/2018,DVLA,Vehicle Licence,4343,60907,Other Vehicle Costs,252.50,,Operations,Oct-18,
11/10/2018,DVLA,Vehicle Licence,4343,60907,Other Vehicle Costs,252.50,,Operations,Oct-18,
11/10/2018,DVLA,Vehicle Licence,4343,60907,Other Vehicle Costs,252.50,,Operations,Oct-18,
11/10/2018,DVLA,Vehicle Licence,4343,60907,Other Vehicle Costs,252.50,,Operations,Oct-18,
11/10/2018,DVLA,Vehicle Licence,4343,60907,Other Vehicle Costs,252.50,,Operations,Oct-18,
11/10/2018,DVLA,Vehicle Licence,4343,60907,Other Vehicle Costs,252.50,,Operations,Oct-18,
11/10/2018,DVLA,Vehicle Licence,4343,60907,Other Vehicle Costs,252.50,,Operations,Oct-18,
11/10/2018,DVLA,Vehicle Licence,4343,60907,Other Vehicle Costs,652.50,,Operations,Oct-18,
11/10/2018,DVLA,Vehicle Licence,4343,60907,Other Vehicle Costs,652.50,,Operations,Oct-18,
11/10/2018,DVLA,Vehicle Licence,4343,60907,Other Vehicle Costs,652.50,,Operations,Oct-18,
11/10/2018,DVLA,Vehicle Licence,4343,60907,Other Vehicle Costs,652.50,,Operations,Oct-18,
11/10/2018,DVLA,Vehicle Licence,4343,60907,Other Vehicle Costs,652.50,,Operations,Oct-18,
11/10/2018,Amazon,Equipment,5225,64070,ICT Hardware,12.32,,IMD,Oct-18,
11/10/2018,WP-KALNET4U LTD,0300 service for Building Control,5222,64077,Landline Rental,17.99,,IMD,Oct-18,
11/10/2018,ASPHALTIC ROOFING,Roofing repairs,4050,61709,Materials,255.38,,One Leisure St Ives,Oct-18,
11/10/2018,screwfix,Building Materials,4050,61709,Materials,307.62,,One Leisure St Ives,Oct-18,
12/10/2018,WWW.DOMINOS.CO.UK,Food for Thought,5220,60115,Staff Training and Devlopment,29.98,,Human Resources,Oct-18,
12/10/2018,Travelodge,Temp Accomodation,H4434,64401,B&B Accomodation,194.00,,Housing,Oct-18,
12/10/2018,Travelodge,Temp Accomodation,H4417,64401,B&B Accomodation,385.00,,Housing,Oct-18,
12/10/2018,Travelodge,Temp Accomodation,H4471,64401,B&B Accomodation,646.00,,Housing,Oct-18,
12/10/2018,Travelodge,Temp Accomodation,H4536,64401,B&B Accomodation,989.00,,Housing,Oct-18,
12/10/2018,WESTMINSTER FORUM,Conference,4135,64300,Conference Expenses,276.00,,Corporate Office,Oct-18,
13/10/2018,J2 eFax Service,eFax Service for City,5222,64077,Landline Rental,13.20,,IMD,Oct-18,
14/10/2018,THE WORKS,Mental Health books,5220,60115,Staff Training and Devlopment,23.55,,Human Resources,Oct-18,
14/10/2018,Umbraco,Website Tool for 3 Councils,5225,64071,ICT Software,369.00,,IMD,Oct-18,
15/10/2018,Travelodge,Temp Accomodation,H4434,64401,B&B Accomodation,-216.00,,Housing,Oct-18,
15/10/2018,Travelodge,Temp Accomodation,H4434,64401,B&B Accomodation,-194.00,,Housing,Oct-18,
15/10/2018,DVLA,Vehicle Licence,4343,60907,Other Vehicle Costs,202.50,,Operations,Oct-18,
15/10/2018,1&1 INTERNET LIMITED,Domain Registration,5225,64071,ICT Software,19.32,,IMD,Oct-18,
15/10/2018,1&1 INTERNET LIMITED,Domain Registration,5096,64071,ICT Software,35.04,,IMD,Oct-18,
15/10/2018,W M MORRISON PLC,supplies,4059,61900,Catering Supplies,18.40,,One Leisure St Ives,Oct-18,
16/10/2018,CIEH,Student Registration Fee,5269,60115,Staff Training and Devlopment,216.00,,Community Services,Oct-18,
16/10/2018,Travelodge,Temp Accomodation,H4452,64401,B&B Accomodation,-215.00,,Housing,Oct-18,
16/10/2018,Premier Inn,Premier Inn conference accommodation,4145,64300,Conference Expenses,51.00,,Corporate Office,Oct-18,
16/10/2018,MEETUP ORG BSC 6M,Networking,5225,64071,ICT Software,23.48,,IMD,Oct-18,
16/10/2018,Argos,Equipment,4050,61709,Materials,9.99,,One Leisure St Ives,Oct-18,
16/10/2018,BAKER ROSS,Christmas fayre goods,4050,61709,Materials,100.12,,One Leisure St Ives,Oct-18,
17/10/2018,Amazon,Maintenance items,4021,60201,Maintenance Buildings,3.44,,One Leisure Huntingdon,Oct-18,
17/10/2018,CHARGE.COM,Card procesing software,5225,64071,ICT Software,97.88,,IMD,Oct-18,
18/10/2018,Amazon,Management books,5220,60115,Staff Training and Devlopment,8.34,,Human Resources,Oct-18,
18/10/2018,Amazon,Management books,5220,60115,Staff Training and Devlopment,8.44,,Human Resources,Oct-18,
18/10/2018,Premier Inn,Temp Accomodation,H4491,64401,B&B Accomodation,521.00,,Housing,Oct-18,
18/10/2018,HEMMING GROUP LTD,Subscription,4145,64800,Membersip and Subscription,140.00,,Corporate Office,Oct-18,
18/10/2018,Amazon,Equipment,4019,61713,Equipment,7.99,,One Leisure Huntingdon,Oct-18,
18/10/2018,Amazon,Equipment,4010,62005,"Advertising, Publicity and Marketing",19.18,,One Leisure Huntingdon,Oct-18,
18/10/2018,Amazon,Equipment,4010,62005,"Advertising, Publicity and Marketing",19.18,,One Leisure Huntingdon,Oct-18,
18/10/2018,Adobe,Marketing - Adobe,4019,61713,Equipment,41.62,,One Leisure Huntingdon,Oct-18,
18/10/2018,TOTAL CUBICLES,Marketing,4010,62005,"Advertising, Publicity and Marketing",174.00,,One Leisure Huntingdon,Oct-18,
18/10/2018,JANITORIALW,Work Wear,4343,61713,Equipment,39.48,,Operations,Oct-18,
19/10/2018,EB *SEMINAR DEVELOPING,LGIU Training on Political Awareness att,5220,60115,Staff Training and Devlopment,359.94,,Corporate Office,Oct-18,
19/10/2018,Amazon,Management books,5220,60115,Staff Training and Devlopment,10.17,,Human Resources,Oct-18,
19/10/2018,SP * CAPITAL BADGES,Mental health badges,5220,60115,Staff Training and Devlopment,82.20,,Human Resources,Oct-18,
19/10/2018,BPHA LIMITED,RIA,H4420,64405,Rental Deposit Loan Payments,230.77,,Housing,Oct-18,
19/10/2018,Travelodge,Temp Accomodation,H4417,64401,B&B Accomodation,366.00,,Housing,Oct-18,
19/10/2018,Travelodge,Temp Accomodation,H4391,64401,B&B Accomodation,428.00,,Housing,Oct-18,
19/10/2018,Travelodge,Temp Accomodation,H4471,64401,B&B Accomodation,438.00,,Housing,Oct-18,
19/10/2018,Travelodge,Temp Accomodation,H4536,64401,B&B Accomodation,789.00,,Housing,Oct-18,
19/10/2018,Ticket Source,Event,4050,61709,Materials,80.09,,One Leisure St Ives,Oct-18,
20/10/2018,DRAGONFLY,LA challenge,5220,60115,Staff Training and Devlopment,372.60,,Human Resources,Oct-18,
22/10/2018,DVLA,Vehicle Licence,4343,60907,Other Vehicle Costs,652.50,,Operations,Oct-18,
22/10/2018,Amazon,Equipment,4075,61713,Equipment,7.99,,One Leisure Huntingdon,Oct-18,
22/10/2018,Tesco,supplies,4075,61713,Equipment,23.80,,One Leisure Huntingdon,Oct-18,
22/10/2018,WWW.CLADINGCENTRE.COM,Building Materials,4050,61709,Materials,331.92,,One Leisure St Ives,Oct-18,
23/10/2018,Mailchimp,Automated Email and Monthly Suscription,5222,64071,ICT Software,46.67,,IMD,Oct-18,
23/10/2018,DYNO,Emergency Plumbing,4050,61709,Materials,186.00,,One Leisure St Ives,Oct-18,
24/10/2018,Premier Inn,Temp Accomodation,H4491,64401,B&B Accomodation,546.00,,Housing,Oct-18,
24/10/2018,THE INSTITUTION OF,Brightness of Illuminated Advertisement,5282,62003,"Books, Publications and Resources",60.00,,Planning,Oct-18,
25/10/2018,Travelodge,Temp Accomodation,H4490,64401,B&B Accomodation,55.00,,Housing,Oct-18,
25/10/2018,Amazon,Equipment,4075,61713,Equipment,36.56,,One Leisure Huntingdon,Oct-18,
25/10/2018,Sainsburys,Hospitality,4145,61903,Hospitality,27.60,,Corporate Office,Oct-18,
25/10/2018,GIBBS & DANDY,Building Materials,4050,61709,Materials,51.40,,One Leisure St Ives,Oct-18,
25/10/2018,JEWSON,Building Materials,4050,61709,Materials,108.80,,One Leisure St Ives,Oct-18,
26/10/2018,Travelodge,Temp Accomodation,H4490,64401,B&B Accomodation,194.00,,Housing,Oct-18,
26/10/2018,CLICK A SKIP NATIONWID,Skip Hire,H4434,64401,B&B Accomodation,216.00,,Housing,Oct-18,
26/10/2018,Travelodge,Temp Accomodation,H4391,64401,B&B Accomodation,461.00,,Housing,Oct-18,
26/10/2018,Travelodge,Temp Accomodation,H4471,64401,B&B Accomodation,473.00,,Housing,Oct-18,
26/10/2018,WWW.SOLACE.ORG.UK,Conference,4145,64300,Conference Expenses,"1,020.00",,Corporate Office,Oct-18,
26/10/2018,WWW.GETTYIMAGES.COM,Marketing,4019,61713,Equipment,70.00,,One Leisure Huntingdon,Oct-18,
26/10/2018,Hoo Suite,Marketing,4019,61713,Equipment,142.80,,One Leisure Huntingdon,Oct-18,
26/10/2018,Atlassian,Cloud and JIRA Services,5225,64071,ICT Software,20.15,,IMD,Oct-18,
26/10/2018,WWW.CORIDO.CO.UK,Furniture,4343,61713,Equipment,329.99,,Operations,Oct-18,
27/10/2018,GitHub,Monthly Subscription for 7 Licences,5225,64071,ICT Software,34.65,,IMD,Oct-18,
29/10/2018,THE SAMUEL PEPYS,LA challenge,5220,60115,Staff Training and Devlopment,53.70,,Human Resources,Oct-18,
29/10/2018,DRAGONFLY,LA challenge,5220,60115,Staff Training and Devlopment,59.70,,Human Resources,Oct-18,
29/10/2018,Travelodge,Temp Accomodation,H4490,64401,B&B Accomodation,58.00,,Housing,Oct-18,
29/10/2018,MUIR GROUP HA LTD,RIA,H4407,64405,Rental Deposit Loan Payments,180.68,,Housing,Oct-18,
29/10/2018,Bitrix,Web-based PM Tool,5225,64071,ICT Software,161.11,,IMD,Oct-18,
30/10/2018,NO 5 CHAMBERS LTD,Training,5220,60115,Staff Training and Devlopment,162.00,,Human Resources,Oct-18,
30/10/2018,Travelodge,Temp Accomodation,H4490,64401,B&B Accomodation,55.00,,Housing,Oct-18,
30/10/2018,Travelodge,Temp Accomodation,H4493,64401,B&B Accomodation,341.00,,Housing,Oct-18,
30/10/2018,Travelodge,Temp Accomodation,H4494,64401,B&B Accomodation,425.00,,Housing,Oct-18,
30/10/2018,WWW.OYPLA.COM,Trolleys for Equipment,4101,61713,Equipment,65.97,,Active Leisure,Oct-18,
30/10/2018,RS COMPONENTS,Vehicle Parts,4343,61713,Equipment,144.22,,Operations,Oct-18,
31/10/2018,DRAGONFLY,LA challenge,5220,60115,Staff Training and Devlopment,-9.95,,Human Resources,Oct-18,
31/10/2018,Premier Inn,Temp Accomodation,H4358,64401,B&B Accomodation,99.00,,Housing,Oct-18,
31/10/2018,Travelodge,Temp Accomodation,H4490,64401,B&B Accomodation,110.00,,Housing,Oct-18,
31/10/2018,ACCENT HOUSING,RIA,H4209,64405,Rental Deposit Loan Payments,493.48,,Housing,Oct-18,
31/10/2018,Premier Inn,Temp Accomodation,H4491,64401,B&B Accomodation,671.00,,Housing,Oct-18,
31/10/2018,Marks & Spencer PLC,Hospitality,4145,61903,Hospitality,14.90,,Corporate Office,Oct-18,
31/10/2018,Facebook,Marketing,4010,62005,"Advertising, Publicity and Marketing",99.39,,One Leisure Huntingdon,Oct-18,
31/10/2018,Mailchimp,Marketing,4010,62005,"Advertising, Publicity and Marketing",142.86,,One Leisure Huntingdon,Oct-18,
31/10/2018,Facebook,Marketing,4019,61713,Equipment,269.18,,One Leisure Huntingdon,Oct-18,
01/11/2018,METROPOLITAN HOUS,RIA,H4427,64405,Rental Deposit Loan Payments,198.11,,Housing,Oct-18,
01/11/2018,Travelodge,Temp Accomodation,H4495,64401,B&B Accomodation,651.00,,Housing,Oct-18,
01/11/2018,CYAN BEST BUY,Toner Cartridge,4343,61713,Equipment,75.00,,Operations,Oct-18,
02/11/2018,Travelodge,Temporary Accommodation,H4490,64401,B&B Accomodation,223.00,,Housing,Nov-18,
02/11/2018,Travelodge,Temporary Accommodation,H4391,64401,B&B Accomodation,441.00,,Housing,Nov-18,
02/11/2018,Travelodge,Temporary Accommodation,H4471,64401,B&B Accomodation,499.00,,Housing,Nov-18,
02/11/2018,THOMSONREUTERS,Publication,5282,62003,"Books, Publications and Resources",189.00,,Planning,Nov-18,
05/11/2018,Argos,Equipment,4019,61713,Equipment,14.99,,One Leisure Huntingdon,Nov-18,
05/11/2018,WWW.LIFESAVERSDIRECT,Safety Equipment,4021,60201,Maintenance Buildings,31.50,,One Leisure Huntingdon,Nov-18,
05/11/2018,WWW.LIFESAVERSDIRECT,Course,4019,61713,Equipment,221.00,,One Leisure Huntingdon,Nov-18,
06/11/2018,Travelodge,Temporary Accommodation,H4494,64401,B&B Accomodation,419.00,,Housing,Nov-18,
06/11/2018,Travelodge,Temporary Accommodation,H4490,64401,B&B Accomodation,419.00,,Housing,Nov-18,
06/11/2018,Premier Inn,Temporary Accommodation,H4491,64401,B&B Accomodation,669.00,,Housing,Nov-18,
06/11/2018,PLUMB CENTER,Materials,4010,62005,"Advertising, Publicity and Marketing",5.59,,One Leisure Huntingdon,Nov-18,
06/11/2018,PLUMB CENTER,Materials,4021,60201,Maintenance Buildings,23.47,,One Leisure Huntingdon,Nov-18,
06/11/2018,PLUMB CENTER,Materials,4021,60201,Maintenance Buildings,32.86,,One Leisure Huntingdon,Nov-18,
06/11/2018,PLUMB CENTER,Materials,4021,60201,Maintenance Buildings,438.55,,One Leisure Huntingdon,Nov-18,
06/11/2018,BAKER ROSS,Christmas fayre goods,4050,61709,Materials,35.74,,One Leisure St Ives,Nov-18,
06/11/2018,WM MORRISONS STORE,Burgess catering,4059,61900,Catering Supplies,80.46,,One Leisure St Ives,Nov-18,
07/11/2018,Sainsburys,Hospitality,5220,60115,Staff Training and Devlopment,15.00,,Human Resources,Nov-18,
07/11/2018,Travelodge,Temporary Accommodation,H4536,64401,B&B Accomodation,576.00,,Housing,Nov-18,
07/11/2018,WWW.IKEA.COM,4x LaptopRisers for Mosaic -SR00050781,4148,64070,ICT Hardware,19.95,,IMD,Nov-18,
07/11/2018,Amazon,Party bags and contents,4050,61709,Materials,14.48,,One Leisure St Ives,Nov-18,
07/11/2018,Amazon,Christmas goods,4050,61709,Materials,15.99,,One Leisure St Ives,Nov-18,
07/11/2018,CLICKMETAL.CO.UK,Stainless steel sheets,4343,61713,Equipment,127.31,,Operations,Nov-18,
07/11/2018,WW.WASHWAREESSENTIALS.,Taps,4118,61702,"Maintenance - Equipment, Furniture and Materials",163.20,,Operations,Nov-18,
07/11/2018,MYERSCOUGH COLLEGE,Distant Learning Course,5209,60115,Staff Training and Devlopment,625.00,,Operations,Nov-18,
08/11/2018,DVLA,12 Months RFL,4343,60907,Other Vehicle Costs,142.50,,Operations,Nov-18,
08/11/2018,DVLA,12 Months RFL,4327,60907,Other Vehicle Costs,252.50,,Operations,Nov-18,
08/11/2018,DVLA,12 Months RFL,4327,60907,Other Vehicle Costs,252.50,,Operations,Nov-18,
08/11/2018,DVLA,12 Months RFL,4346,60907,Other Vehicle Costs,652.50,,Operations,Nov-18,
08/11/2018,BASICS EQUIPMENT LIMITED,Equipment,4075,61713,Equipment,113.21,,One Leisure Huntingdon,Nov-18,
08/11/2018,MULBERRIES THE FLORIST,Hospitality,4145,61903,Hospitality,25.00,,Corporate Office,Nov-18,
08/11/2018,LINKEDIN,Recruitment,4019,61713,Equipment,243.23,,One Leisure Huntingdon,Nov-18,
08/11/2018,Amazon,Table candles,4050,61709,Materials,132.00,,One Leisure St Ives,Nov-18,
08/11/2018,TVLICENSING.CO.UK,TV Licence,4063,60410,Licences,150.50,,One Leisure St Ives,Nov-18,
08/11/2018,NICK HERN BOOKS LTD,materials for Pantomine,4050,61709,Materials,251.88,,One Leisure St Ives,Nov-18,
08/11/2018,NICK HERN BOOKS LTD,materials for Pantomine,4050,61709,Materials,300.00,,One Leisure St Ives,Nov-18,
09/11/2018,Amazon,Equipment,4277,61713,Equipment,51.92,,Community Services,Nov-18,
10/11/2018,Digicert Inc,SSL Certificate for *.cambridge.gov.uk,5225,64071,ICT Software,396.47,,IMD,Nov-18,
11/11/2018,Amazon,Equipment,4277,61713,Equipment,208.33,,Community Services,Nov-18,
11/11/2018,Sainsburys,Hospitality,5220,60115,Staff Training and Devlopment,-15.00,,Human Resources,Nov-18,
11/11/2018,Sainsburys,Hospitality,5220,60115,Staff Training and Devlopment,22.35,,Human Resources,Nov-18,
11/11/2018,Amazon,HighSpeed HDMI Cable,5223,64070,ICT Hardware,5.19,,IMD,Nov-18,
11/11/2018,Amazon,10x USB Car Chargers,5223,64070,ICT Hardware,49.90,,IMD,Nov-18,
11/11/2018,Amazon,Christmas goods,4050,61709,Materials,44.48,,One Leisure St Ives,Nov-18,
12/11/2018,THE RANGE,Equipment,5220,60115,Staff Training and Devlopment,13.48,,Human Resources,Nov-18,
12/11/2018,Travelodge,Temporary Accommodation,H4471,64401,B&B Accomodation,445.00,,Housing,Nov-18,
12/11/2018,Travelodge,Temporary Accommodation,H4495,64401,B&B Accomodation,445.00,,Housing,Nov-18,
12/11/2018,Marks & Spencer PLC,Hospitality,4145,61903,Hospitality,67.50,,Corporate Office,Nov-18,
12/11/2018,Facebook,Marketing,4010,62005,"Advertising, Publicity and Marketing",200.00,,One Leisure Huntingdon,Nov-18,
12/11/2018,WP-KALNET4U LTD,0300 service for Building Control,5222,64077,Landline Rental,17.99,,IMD,Nov-18,
12/11/2018,WM MORRISONS STORE,Food,4049,61900,Catering Supplies,40.70,,One Leisure St Ives,Nov-18,
13/11/2018,Travelodge,Temporary Accommodation,H4391,64401,B&B Accomodation,451.00,,Housing,Nov-18,
13/11/2018,Premier Inn,Temporary Accommodation,H4491,64401,B&B Accomodation,647.00,,Housing,Nov-18,
13/11/2018,POST OFFICE COUNTER,Postage,5527,64900,Registration Fee,27.60,,IMD,Nov-18,
13/11/2018,J2 eFax Service,eFax Service for City,5222,64077,Landline Rental,13.20,,IMD,Nov-18,
13/11/2018,1&1 INTERNET LIMITED,Domain Registration,5225,64071,ICT Software,19.32,,IMD,Nov-18,
13/11/2018,1&1 INTERNET LIMITED,Domain Registration,5096,64071,ICT Software,35.04,,IMD,Nov-18,
13/11/2018,Umbraco,Website Tool for 3 Councils,5225,64071,ICT Software,369.00,,IMD,Nov-18,
13/11/2018,Amazon,Equipment,4056,61713,Equipment,103.11,,One Leisure St Ives,Nov-18,
13/11/2018,Amazon,Equipment,4056,61713,Equipment,110.97,,One Leisure St Ives,Nov-18,
14/11/2018,MUIR GROUP HA LTD,RIA,H1645,64403,Homeless Prevention Payments,352.84,,Housing,Nov-18,
14/11/2018,Amazon,Equipment,4056,61713,Equipment,15.98,,One Leisure St Ives,Nov-18,
14/11/2018,screwfix,Xtend & Climb 3.2m ladder,4362,61713,Equipment,149.99,,Operations,Nov-18,
15/11/2018,Travelodge,Temporary Accommodation,H4457,64401,B&B Accomodation,55.00,,Housing,Nov-18,
15/11/2018,Travelodge,Temporary Accommodation,H4512,64401,B&B Accomodation,662.00,,Housing,Nov-18,
15/11/2018,Hinchingbrooke Healthcare,Parking,4145,62007,Purchase Card Expense,2.90,,Corporate Office,Nov-18,
15/11/2018,Sainsburys,Hospitality,4145,61903,Hospitality,28.77,,Corporate Office,Nov-18,
16/11/2018,BLITZ DESIGN,NetApp 450Gb Hard Disk Drive,5225,64070,ICT Hardware,79.03,,IMD,Nov-18,
16/11/2018,STACK OVERFLOW,Meeting Attendance Tool,5225,64071,ICT Software,96.85,,IMD,Nov-18,
17/11/2018,THE RANGE,Xmas Decorations,4055,61709,Materials,10.00,,One Leisure St Ives,Nov-18,
17/11/2018,THE RANGE,Xmas Decorations,4055,61709,Materials,77.30,,One Leisure St Ives,Nov-18,
18/11/2018,Adobe,Marketing - Adobe,4010,62005,"Advertising, Publicity and Marketing",41.62,,One Leisure Huntingdon,Nov-18,
19/11/2018,Travelodge,Temporary Accommodation,H4494,64401,B&B Accomodation,-208.00,,Housing,Nov-18,
19/11/2018,Travelodge,Temporary Accommodation,H4490,64401,B&B Accomodation,-159.00,,Housing,Nov-18,
19/11/2018,Travelodge,Temporary Accommodation,H4471,64401,B&B Accomodation,451.00,,Housing,Nov-18,
19/11/2018,DPD_LOCAL_ONLINE,Equipment,4075,61713,Equipment,11.39,,One Leisure Huntingdon,Nov-18,
19/11/2018,Amazon,12x USBto3.5mm Barrel Jack Cables,5223,64070,ICT Hardware,71.57,,IMD,Nov-18,
19/11/2018,POUNDSTRETCHER 0734,Xmas Decorations,4055,61709,Materials,13.95,,One Leisure St Ives,Nov-18,
19/11/2018,HomeBase Ltd,Xmas Decorations,4055,61709,Materials,35.29,,One Leisure St Ives,Nov-18,
20/11/2018,SECURITY INDUSTRY,Subscription,4185,64800,Membersip and Subscription,220.00,,Community Services,Nov-18,
20/11/2018,Travelodge,Temporary Accommodation,H4391,64401,B&B Accomodation,58.00,,Housing,Nov-18,
20/11/2018,Travelodge,Temporary Accommodation,H4391,64401,B&B Accomodation,451.00,,Housing,Nov-18,
20/11/2018,Marks & Spencer PLC,Hospitality,4145,61903,Hospitality,44.39,,Corporate Office,Nov-18,
20/11/2018,TVLICENSING.CO.UK,TV Licence,4055,60410,Licences,150.50,,One Leisure St Ives,Nov-18,
21/11/2018,CIEH,Student Registration Fee,5269,60115,Staff Training and Devlopment,216.00,,Community Services,Nov-18,
21/11/2018,THE WORKS,Equipment,5220,60115,Staff Training and Devlopment,18.05,,Human Resources,Nov-18,
21/11/2018,Amazon,Equipment,4019,61713,Equipment,9.24,,One Leisure Huntingdon,Nov-18,
21/11/2018,CREATIVE FLOORING,Flooring,4019,61713,Equipment,213.57,,One Leisure Huntingdon,Nov-18,
21/11/2018,CREATIVE FLOORING,Flooring,4019,61713,Equipment,213.57,,One Leisure Huntingdon,Nov-18,
21/11/2018,CREATIVE FLOORING,Flooring,4019,61713,Equipment,213.57,,One Leisure Huntingdon,Nov-18,
22/11/2018,Premier Inn,Temporary Accommodation,H4491,64401,B&B Accomodation,241.00,,Housing,Nov-18,
22/11/2018,Travelodge,Temporary Accommodation,H4512,64401,B&B Accomodation,445.00,,Housing,Nov-18,
22/11/2018,Premier Inn,Temporary Accommodation,H4491,64401,B&B Accomodation,686.00,,Housing,Nov-18,
22/11/2018,Amazon,Equipment,4075,61713,Equipment,7.99,,One Leisure Huntingdon,Nov-18,
22/11/2018,Amazon,Equipment,4075,61713,Equipment,12.75,,One Leisure Huntingdon,Nov-18,
23/11/2018,Axiom Housing,HL/PREV,H4513,64403,Homeless Prevention Payments,230.86,,Housing,Nov-18,
23/11/2018,Mailchimp,Automated Email and Monthly Suscription,5222,64071,ICT Software,47.36,,IMD,Nov-18,
23/11/2018,Amazon,6x 15 Gift Card for HDS Website testers,4184,66600,Compensation,90.00,,IMD,Nov-18,
23/11/2018,Digicert Inc,SSL Certificate for *.cambridge.gov.uk,5225,64071,ICT Software,529.54,,IMD,Nov-18,
23/11/2018,TSGN,Rail Ticket,4164,60012,Employee Allowances,55.90,,Corporate Office,Nov-18,
26/11/2018,Travelodge,Temporary Accommodation,H4495,64401,B&B Accomodation,-311.00,,Housing,Nov-18,
26/11/2018,Travelodge,Temporary Accommodation,H4515,64401,B&B Accomodation,447.00,,Housing,Nov-18,
26/11/2018,Travelodge,Temporary Accommodation,H4471,64401,B&B Accomodation,453.00,,Housing,Nov-18,
26/11/2018,iStock,i-stock Marketing,4010,62005,"Advertising, Publicity and Marketing",70.00,,One Leisure Huntingdon,Nov-18,
26/11/2018,Hoo Suite,Marketing,4010,62005,"Advertising, Publicity and Marketing",142.80,,One Leisure Huntingdon,Nov-18,
26/11/2018,Atlassian,Cloud and JIRA Services,5225,64071,ICT Software,12.07,,IMD,Nov-18,
26/11/2018,Amazon,Inftalable Belly,4343,61713,Equipment,5.78,,Operations,Nov-18,
26/11/2018,Amazon,Half Moon Glasses,4343,61713,Equipment,7.98,,Operations,Nov-18,
26/11/2018,Amazon,Smoke Machine & Fluid,4343,61713,Equipment,43.98,,Operations,Nov-18,
26/11/2018,Amazon,Santa Costumes,4343,61713,Equipment,85.96,,Operations,Nov-18,
26/11/2018,Amazon,Santa Elf Costumes,4343,61713,Equipment,127.41,,Operations,Nov-18,
27/11/2018,MUIR GROUP HA LTD,RIA,H4537,64403,Homeless Prevention Payments,176.34,,Housing,Nov-18,
27/11/2018,BPHA LIMITED,RIA,H2132,64403,Homeless Prevention Payments,217.66,,Housing,Nov-18,
27/11/2018,GitHub,Monthly Subscription for 7 Licences,5225,64071,ICT Software,34.79,,IMD,Nov-18,
27/11/2018,Amazon,Snow Machine & Fluid,4343,61713,Equipment,61.98,,Operations,Nov-18,
28/11/2018,Travelodge,Temporary Accommodation,H4512,64401,B&B Accomodation,154.00,,Housing,Nov-18,
28/11/2018,B & Q,Materials,4021,60201,Maintenance Buildings,254.06,,One Leisure Huntingdon,Nov-18,
29/11/2018,Luminus Homes,RIA,H4462,64403,Homeless Prevention Payments,104.12,,Housing,Nov-18,
29/11/2018,Travelodge,Temporary Accommodation,H4512,64401,B&B Accomodation,184.00,,Housing,Nov-18,
29/11/2018,Bitrix,Web-based PM Tool,5225,64071,ICT Software,160.63,,IMD,Nov-18,
29/11/2018,Amazon,Snow Fluid,4343,61713,Equipment,49.98,,Operations,Nov-18,
29/11/2018,HALFORDS,Tom Tom Go 520 World,4343,61713,Equipment,149.99,,Operations,Nov-18,
30/11/2018,Amazon,Amazon.co.uk - 20 x Tick Twisters,4327,61713,Equipment,60.79,,Operations,Nov-18,
30/11/2018,Facebook,Marketing,4010,62005,"Advertising, Publicity and Marketing",16.45,,One Leisure Huntingdon,Nov-18,
30/11/2018,Mailchimp,Marketing,4010,62005,"Advertising, Publicity and Marketing",142.20,,One Leisure Huntingdon,Nov-18,
30/11/2018,Facebook,Marketing,4010,62005,"Advertising, Publicity and Marketing",378.42,,One Leisure Huntingdon,Nov-18,
30/11/2018,Amazon,Christmas Party Boxes,4343,61713,Equipment,186.99,,Operations,Nov-18,
03/12/2018,Travelodge,Temporary Accommodation,H4471,64401,B&B Accomodation,444.00,,Housing,Dec-18,
03/12/2018,Travelodge,Temporary Accommodation,H4515,64401,B&B Accomodation,444.00,,Housing,Dec-18,
03/12/2018,AXOSOFT GITKRAKEN,Software development tools,5225,64071,ICT Software,26.88,,IMD,Dec-18,
03/12/2018,Amazon,Equipment,4343,61713,Equipment,30.00,,Operations,Dec-18,
04/12/2018,Travelodge,Temporary Accommodation,H4391,64401,B&B Accomodation,-310.00,,Housing,Dec-18,
04/12/2018,Argos,Equipment,4108,61713,Equipment,12.50,,Active Leisure,Dec-18,
04/12/2018,ELC-INTERNET,Equipment,4108,61713,Equipment,39.95,,Active Leisure,Dec-18,
04/12/2018,MMKIDS,Staff Development,4343,61713,Equipment,271.49,,Operations,Dec-18,
05/12/2018,CIEH,Conference,4139,64300,Conference Expenses,280.00,,Community Services,Dec-18,
05/12/2018,Amazon,Equipment,5220,60115,Staff Training and Devlopment,35.65,,Human Resources,Dec-18,
05/12/2018,Amazon,Equipment,5220,60115,Staff Training and Devlopment,122.64,,Human Resources,Dec-18,
05/12/2018,Tesco,supplies,4021,60201,Maintenance Buildings,27.00,,One Leisure Huntingdon,Dec-18,
05/12/2018,DRI SQL SERVER PASSW,Server Software,5225,64071,ICT Software,42.99,,IMD,Dec-18,
05/12/2018,FCODER SIA,Data Software,5225,64071,ICT Software,67.55,,IMD,Dec-18,
05/12/2018,Amazon,Equipment,5225,64071,ICT Software,88.49,,IMD,Dec-18,
05/12/2018,HDD,Software,5225,64071,ICT Software,566.39,,IMD,Dec-18,
05/12/2018,HOTEL CHOCOLAT FACTORY,Hospitality,4164,60012,Employee Allowances,90.00,,Corporate Office,Dec-18,
06/12/2018,CROSS KEYS HOMES WHITESTONE,Homeless Prevention,H4519,64405,Rental Deposit Loan Payments,259.56,,Housing,Dec-18,
06/12/2018,Travelodge,Temporary Accommodation,H4521,64401,B&B Accomodation,285.00,,Housing,Dec-18,
07/12/2018,Amazon,Equipment,4054,61709,Materials,11.00,,One Leisure St Ives,Dec-18,
09/12/2018,Amazon,Equipment,4148,62003,"Books, Publications and Resources",41.51,,Housing,Dec-18,
10/12/2018,Sainsburys,Hospitality,5220,60115,Staff Training and Devlopment,14.00,,Human Resources,Dec-18,
10/12/2018,Travelodge,Temporary Accommodation,H4512,64401,B&B Accomodation,-233.00,,Housing,Dec-18,
10/12/2018,Travelodge,Temporary Accommodation,H4471,64401,B&B Accomodation,405.00,,Housing,Dec-18,
10/12/2018,4OURHOUSE,Equipment,4075,61713,Equipment,44.92,,One Leisure Huntingdon,Dec-18,
10/12/2018,RINGGO,Parking,4145,60000,Salaries,4.10,,Corporate Office,Dec-18,
11/12/2018,MAX SPIELMANN MANCHESTER,Photos,4139,62003,"Books, Publications and Resources",20.00,,Community Services,Dec-18,
11/12/2018,Premier Inn,Temporary Accommodation,H4491,64401,B&B Accomodation,630.00,,Housing,Dec-18,
11/12/2018,B & Q,Materials,4021,60201,Maintenance Buildings,90.52,,One Leisure Huntingdon,Dec-18,
11/12/2018,STANJAY SPORTS,supplies,4164,60012,Employee Allowances,50.00,,Corporate Office,Dec-18,
12/12/2018,FONTS COM,Software,5225,64071,ICT Software,247.55,,IMD,Dec-18,
12/12/2018,Travelodge,Temporary Accommodation,H4491,64401,B&B Accomodation,299.00,,Housing,Dec-18,
12/12/2018,CROSS KEYS HOMES,Homeless Prevention,H4527,64405,Rental Deposit Loan Payments,309.12,,Housing,Dec-18,
12/12/2018,Travelodge,Temporary Accommodation,H4491,64401,B&B Accomodation,517.00,,Housing,Dec-18,
12/12/2018,DVLA,Vehicle Licence,4343,60907,Other Vehicle Costs,167.50,,Operations,Dec-18,
12/12/2018,FTA,Equipment,4343,60907,Other Vehicle Costs,180.00,,Operations,Dec-18,
12/12/2018,DVLA,Vehicle Licence,4343,60907,Other Vehicle Costs,212.50,,Operations,Dec-18,
12/12/2018,DVLA,Vehicle Licence,4343,60907,Other Vehicle Costs,212.50,,Operations,Dec-18,
12/12/2018,DVLA,Vehicle Licence,4343,60907,Other Vehicle Costs,252.50,,Operations,Dec-18,
12/12/2018,DVLA,Vehicle Licence,4343,60907,Other Vehicle Costs,252.50,,Operations,Dec-18,
12/12/2018,DVLA,Vehicle Licence,4343,60907,Other Vehicle Costs,252.50,,Operations,Dec-18,
12/12/2018,DVLA,Vehicle Licence,4343,60907,Other Vehicle Costs,252.50,,Operations,Dec-18,
12/12/2018,DVLA,Vehicle Licence,4343,60907,Other Vehicle Costs,252.50,,Operations,Dec-18,
12/12/2018,DVLA,Vehicle Licence,4343,60907,Other Vehicle Costs,252.50,,Operations,Dec-18,
12/12/2018,DVLA,Vehicle Licence,4343,60907,Other Vehicle Costs,652.50,,Operations,Dec-18,
12/12/2018,DVLA,Vehicle Licence,4343,60907,Other Vehicle Costs,652.50,,Operations,Dec-18,
12/12/2018,DVLA,Vehicle Licence,4343,60907,Other Vehicle Costs,652.50,,Operations,Dec-18,
12/12/2018,DVLA,Vehicle Licence,4343,60907,Other Vehicle Costs,652.50,,Operations,Dec-18,
12/12/2018,DVLA,Vehicle Licence,4343,60907,Other Vehicle Costs,652.50,,Operations,Dec-18,
12/12/2018,DVLA,Vehicle Licence,4343,60907,Other Vehicle Costs,652.50,,Operations,Dec-18,
12/12/2018,Marks & Spencer PLC,Hospitality,4145,61903,Hospitality,3.00,,Corporate Office,Dec-18,
13/12/2018,Amazon,Equipment,4104,62005,"Advertising, Publicity and Marketing",90.87,,Active Leisure,Dec-18,
13/12/2018,J2 eFax Service,eFax Service for City,5225,64071,ICT Software,13.20,,IMD,Dec-18,
13/12/2018,1&1 INTERNET LIMITED,Domain Registration,5225,64071,ICT Software,19.32,,IMD,Dec-18,
13/12/2018,Umbraco,Website Tool for 3 Councils,5225,64071,ICT Software,369.00,,IMD,Dec-18,
14/12/2018,LON STCK EXC/NET,Advise,5262,64800,Membersip and Subscription,84.00,,Corporate Office,Dec-18,
16/12/2018,Amazon,Equipment,4054,61709,Materials,59.95,,One Leisure St Ives,Dec-18,
17/12/2018,CIEH,Student Registration Fee,5269,60115,Staff Training and Devlopment,164.00,,Community Services,Dec-18,
17/12/2018,Travelodge,Temporary Accommodation,H4471,64401,B&B Accomodation,546.00,,Housing,Dec-18,
17/12/2018,SURVEY MONKEY,Survey,4010,62005,"Advertising, Publicity and Marketing",320.00,,One Leisure Huntingdon,Dec-18,
18/12/2018,MUIR GROUP HA LTD,RIA,H4540,64405,Rental Deposit Loan Payments,177.62,,Housing,Dec-18,
18/12/2018,Adobe,Marketing - Adobe,4010,62005,"Advertising, Publicity and Marketing",41.62,,One Leisure Huntingdon,Dec-18,
18/12/2018,Amazon,Equipment,4054,61709,Materials,5.99,,One Leisure St Ives,Dec-18,
18/12/2018,ESEDIRECT,Work Wear,4343,61713,Equipment,440.12,,Operations,Dec-18,
19/12/2018,WWW.ALLIESCOMPUTING.CO,Address software,5225,64071,ICT Software,432.00,,IMD,Dec-18,
19/12/2018,Amazon,Equipment,4054,61709,Materials,20.07,,One Leisure St Ives,Dec-18,
22/12/2018,Amazon,Equipment,4075,61713,Equipment,7.99,,One Leisure Huntingdon,Dec-18,
23/12/2018,Mailchimp,Automated Email and Monthly Suscription,5225,64071,ICT Software,55.94,,IMD,Dec-18,
24/12/2018,Travelodge,Temporary Accommodation,H4532,64401,B&B Accomodation,532.00,,Housing,Dec-18,
26/12/2018,iStock,i-stock Marketing,4010,62005,"Advertising, Publicity and Marketing",70.00,,One Leisure Huntingdon,Dec-18,
26/12/2018,Hoo Suite,Marketing,4010,62005,"Advertising, Publicity and Marketing",142.80,,One Leisure Huntingdon,Dec-18,
26/12/2018,Atlassian,Cloud and JIRA Services,5225,64071,ICT Software,16.34,,IMD,Dec-18,
27/12/2018,Travelodge,Temporary Accommodation,H4471,64401,B&B Accomodation,367.00,,Housing,Dec-18,
27/12/2018,HUNTINGDON TIMBER,Wood,100019,60201,Maintenance Buildings,28.90,,One Leisure Huntingdon,Dec-18,
27/12/2018,GitHub,Monthly Subscription for 7 Licences,5225,64071,ICT Software,35.10,,IMD,Dec-18,
28/12/2018,WICKES,Materials,100019,60201,Maintenance Buildings,13.50,,One Leisure Huntingdon,Dec-18,
28/12/2018,screwfix,Maintenance items,100019,60201,Maintenance Buildings,13.98,,One Leisure Huntingdon,Dec-18,
28/12/2018,screwfix,Maintenance items,100019,60201,Maintenance Buildings,16.18,,One Leisure Huntingdon,Dec-18,
28/12/2018,HUNTINGDON TIMBER,Wood,100019,60201,Maintenance Buildings,24.42,,One Leisure Huntingdon,Dec-18,
29/12/2018,Bitrix,Web-based PM Tool,5225,64071,ICT Software,162.16,,IMD,Dec-18,
31/12/2018,Travelodge,Temporary Accommodation,H4471,64401,B&B Accomodation,398.00,,Housing,Dec-18,
31/12/2018,Facebook,Marketing,4010,62005,"Advertising, Publicity and Marketing",29.91,,One Leisure Huntingdon,Dec-18,
31/12/2018,Mailchimp,Marketing,4010,62005,"Advertising, Publicity and Marketing",47.85,,One Leisure Huntingdon,Dec-18,
02/01/2019,Travelodge,Temporary Accommodation,H4471,64401,B&B Accomodation,-398.00,,Housing,Dec-18,
02/01/2019,Luminus Homes,RIA,H4364,64405,Rental Deposit Loan Payments,197.00,,Housing,Dec-18,
02/01/2019,Travelodge,Temporary Accommodation,H4532,64401,B&B Accomodation,331.00,,Housing,Dec-18,
02/01/2019,Premier Inn,Temporary Accommodation,H4491,64401,B&B Accomodation,397.00,,Housing,Dec-18,
02/01/2019,WP-KALNET4U LTD,0300 service for Building Control,5225,64071,ICT Software,17.99,,IMD,Dec-18,
03/01/2019,Ticket Source,Event,4050,61709,Materials,1.00,,One Leisure St Ives,Jan-19,
03/01/2019,Ticket Source,Event,4050,61709,Materials,1.00,,One Leisure St Ives,Jan-19,
04/01/2019,Amazon,Amazon,4277,61713,Equipment,-51.92,,Community Services,Jan-19,
04/01/2019,Solace,Solace Conference,5283,64300,Conference Expenses,210.00,,Corporate Office,Jan-19,
04/01/2019,NGLN ,NLGN Conference,4145,64300,Conference Expenses,226.97,,Corporate Office,Jan-19,
04/01/2019,West End DIY,Materials,4050,61709,Materials,22.99,,One Leisure St Ives,Jan-19,
08/01/2019,Amazon,Amazon,4075,61713,Equipment,15.00,,One Leisure Huntingdon,Jan-19,
08/01/2019,BSL ADMIN,Course,4143,61713,Equipment,354.00,,Operations,Jan-19,
09/01/2019,Digicert Inc,SSL Certificate for *.cambridge.gov.uk,5225,64071,ICT Software,304.62,,IMD,Jan-19,
10/01/2019,Working Planet,Working Planet,4124,61713,Equipment,214.80,,Country Services,Jan-19,
10/01/2019,Premier Inn,Temporary Accommodation,H4491,64401,B&B Accomodation,438.00,,Housing,Jan-19,
10/01/2019,Sainsburys,Sainsbury's Hospitality,4145,61903,Hospitality,11.70,,Corporate Office,Jan-19,
10/01/2019,Supporting History,Supporting History,5282,62003,"Books, Publications and Resources",145.00,,Planning,Jan-19,
11/01/2019,Amazon,Amazon.co.uk - RAMS Vehicle dock,100066,61713,Equipment,240.63,,Operations,Jan-19,
12/01/2019,Umbraco,Website Tool for 3 Councils,5225,64071,ICT Software,369.00,,IMD,Jan-19,
13/01/2019,J2 eFax Service,eFax Service for City,5222,64077,Landline Rental,19.20,,IMD,Jan-19,
13/01/2019,Amazon,Equipment,4050,61709,Materials,6.99,,One Leisure St Ives,Jan-19,
13/01/2019,Amazon,Equipment,4050,61709,Materials,24.04,,One Leisure St Ives,Jan-19,
13/01/2019,Amazon,Equipment,4050,61709,Materials,29.40,,One Leisure St Ives,Jan-19,
14/01/2019,DVLA,Vehicle Licence,4124,60907,Other Vehicle Costs,252.50,,Operations,Jan-19,
14/01/2019,DVLA,Vehicle Licence,4327,60907,Other Vehicle Costs,252.50,,Operations,Jan-19,
14/01/2019,DVLA,Vehicle Licence,4362,60907,Other Vehicle Costs,252.50,,Operations,Jan-19,
14/01/2019,DVLA,Vehicle Licence,5214,60907,Other Vehicle Costs,252.50,,Operations,Jan-19,
14/01/2019,DVLA,Vehicle Licence,5225,60907,Other Vehicle Costs,252.50,,Operations,Jan-19,
14/01/2019,DVLA,Vehicle Licence,5270,60907,Other Vehicle Costs,252.50,,Operations,Jan-19,
14/01/2019,DVLA,Vehicle Licence,5184,60907,Other Vehicle Costs,317.50,,Operations,Jan-19,
14/01/2019,DVLA,Vehicle Licence,4317,60907,Other Vehicle Costs,652.50,,Operations,Jan-19,
14/01/2019,DVLA,Vehicle Licence,4343,60907,Other Vehicle Costs,652.50,,Operations,Jan-19,
14/01/2019,DVLA,Vehicle Licence,4343,60907,Other Vehicle Costs,652.50,,Operations,Jan-19,
14/01/2019,DVLA,Vehicle Licence,4346,60907,Other Vehicle Costs,652.50,,Operations,Jan-19,
14/01/2019,Premier Inn,Premier Inn conference accommodation,5283,64300,Conference Expenses,109.00,,Corporate Office,Jan-19,
14/01/2019,Amazon,Equipment,4050,61709,Materials,11.99,,One Leisure St Ives,Jan-19,
14/01/2019,Amazon,Equipment,4050,61709,Materials,14.99,,One Leisure St Ives,Jan-19,
15/01/2019,Booker,Booker,4124,61713,Equipment,119.98,,Country Services,Jan-19,
15/01/2019,Amazon,Amazon,4075,61713,Equipment,34.98,,One Leisure Huntingdon,Jan-19,
15/01/2019,Amazon,Amazon,4075,61713,Equipment,38.97,,One Leisure Huntingdon,Jan-19,
15/01/2019,Solace,Solace Conference Forum,4136,64300,Conference Expenses,270.00,,Corporate Office,Jan-19,
16/01/2019,Media & Communications,2x Power Supplies for IP Handsets-SR00055667,5237,64070,ICT Hardware,34.80,,IMD,Jan-19,
17/01/2019,Amazon,Equipment,4019,61713,Equipment,6.68,,One Leisure Huntingdon,Jan-19,
18/01/2019,Premier Inn,Temporary Accommodation,H4491,64401,B&B Accomodation,448.00,,Housing,Jan-19,
18/01/2019,ESE Direct,ESEDirect - Rock Salt,4362,61713,Equipment,472.01,,Operations,Jan-19,
18/01/2019,Adobe,Marketing - Adobe,4010,62005,"Advertising, Publicity and Marketing",41.62,,One Leisure Huntingdon,Jan-19,
19/01/2019,Digicert Inc,SSL Certificate for licences.cambridge.gov.uk,5222,64071,ICT Software,158.56,,IMD,Jan-19,
22/01/2019,CREATIVE.COM,Equipment,4138,62007,Purchase Card Expense,60.00,,Corporate Office,Jan-19,
22/01/2019,Leeds Met,Leeds Met,5220,60115,Staff Training and Devlopment,390.00,,Human Resources,Jan-19,
22/01/2019,Amazon,Amazon,4075,61713,Equipment,7.99,,One Leisure Huntingdon,Jan-19,
23/01/2019,local.gov.uk,local.gov.uk,4124,61713,Equipment,240.00,,Country Services,Jan-19,
23/01/2019,CROSS KEYS HOMES,RIA,H4425,64405,Rental Deposit Loan Payments,259.56,,Housing,Jan-19,
23/01/2019,Mailchimp,Automated Email and Monthly Suscription,5222,64071,ICT Software,54.87,,IMD,Jan-19,
24/01/2019,Tesco,Tesco,5220,60115,Staff Training and Devlopment,100.25,,Human Resources,Jan-19,
25/01/2019,GEN Register Office,HPREV (Birth Cert),H4447,64403,Homeless Prevention Payments,23.40,,Housing,Jan-19,
25/01/2019,Premier Inn,Temporary Accommodation,H4491,64401,B&B Accomodation,433.00,,Housing,Jan-19,
25/01/2019,Steve's Private Hire,Steve's Private Hire,4018,60012,Employee Allowances,44.80,,Active Leisure,Jan-19,
26/01/2019,iStock,i-stock Marketing,4010,62005,"Advertising, Publicity and Marketing",70.00,,One Leisure Huntingdon,Jan-19,
26/01/2019,Hoo Suite,Marketing,4010,62005,"Advertising, Publicity and Marketing",142.80,,One Leisure Huntingdon,Jan-19,
26/01/2019,Atlassian,Cloud and JIRA Services,5225,64071,ICT Software,23.66,,IMD,Jan-19,
27/01/2019,GitHub,Monthly Subscription for 7 Licences,5225,64071,ICT Software,33.91,,IMD,Jan-19,
27/01/2019,ESEDirect,Work Wear,4050,61709,Materials,106.20,,One Leisure St Ives,Jan-19,
28/01/2019,CROSS KEYS HOMES,RIA,H4562,64405,Rental Deposit Loan Payments,259.56,,Housing,Jan-19,
28/01/2019,Train Fitness International,Train Fitness International,5220,60115,Staff Training and Devlopment,149.65,,Active Leisure,Jan-19,
29/01/2019,Premier Inn,Premier Inn conference accommodation,4010,64300,Conference Expenses,91.49,,One Leisure Huntingdon,Jan-19,
29/01/2019,Bitrix,Web-based PM Tool,5225,64071,ICT Software,156.92,,IMD,Jan-19,
29/01/2019,Ticket Source,Event,4050,61709,Materials,80.09,,One Leisure St Ives,Jan-19,
30/01/2019,Marks & Spencer PLC,M&S Hospitality,4145,61903,Hospitality,12.90,,Corporate Office,Jan-19,
30/01/2019,WP-KALNET4U LTD,0300 service for Building Control,5222,64077,Landline Rental,23.99,,IMD,Jan-19,
31/01/2019,www.local.gov.uk,LGA Conference,4136,64300,Conference Expenses,238.80,,Corporate Office,Jan-19,
31/01/2019,Facebook,Marketing,4010,62005,"Advertising, Publicity and Marketing",32.83,,One Leisure Huntingdon,Jan-19,
31/01/2019,Mailchimp,Marketing,4010,62005,"Advertising, Publicity and Marketing",46.32,,One Leisure Huntingdon,Jan-19,
01/02/2019,BPHA LIMITED,RIA,H3637,64403,Homeless Prevention Payments,165.46,,Housing,Feb-19,
01/02/2019,Premier Inn,Temporary Accommodation,H4491,64401,B&B Accomodation,426.00,,Housing,Feb-19,
01/02/2019,Amazon,2x HDMI to VGA Cables,5225,64070,ICT Hardware,15.48,,IMD,Feb-19,
01/02/2019,Amazon,Shower parts,4055,60201,Maintenance Buildings,11.68,,One Leisure St Ives,Feb-19,
01/02/2019,Amazon,Shower parts,4055,60201,Maintenance Buildings,29.00,,One Leisure St Ives,Feb-19,
03/02/2019,Facebook,Facebook,4106,62005,"Advertising, Publicity and Marketing",5.66,,Active Leisure,Feb-19,
04/02/2019,www.local.gov.uk,LGA Conference,4145,64300,Conference Expenses,654.00,,Corporate Office,Feb-19,
04/02/2019,www.local.gov.uk,LGA Conference,4164,64300,Conference Expenses,"1,308.00",,Corporate Office,Feb-19,
06/02/2019,GEN Register Office,Homeless Prevention,H4399,64403,Homeless Prevention Payments,23.40,,Housing,Feb-19,
06/02/2019,G Stores,Basket Balls,4021,61713,Equipment,32.85,,One Leisure Huntingdon,Feb-19,
07/02/2019,Ozone Intern,Bilge pump,4124,61713,Equipment,14.98,,Country Services,Feb-19,
07/02/2019,Amazon,SD Cards for Noise Monitorjng Equipment,4278,61713,Equipment,31.08,,Community Services,Feb-19,
07/02/2019,Amazon,Amazon,4075,61713,Equipment,12.98,,One Leisure Huntingdon,Feb-19,
07/02/2019,Credit Trade,Maintenance items,4043,60201,Maintenance Buildings,109.98,,One Leisure Huntingdon,Feb-19,
08/02/2019,Amazon,GPS Tracker for Waste Enforcement,4277,61713,Equipment,69.99,,Community Services,Feb-19,
08/02/2019,Amazon,Amazon,4075,61713,Equipment,19.50,,One Leisure Huntingdon,Feb-19,
08/02/2019,BBC Children in Need,Charity Collection,4055,51102,Charity Collections,43.00,,One Leisure St Ives,Feb-19,
11/02/2019,Amazon,Amazon,4075,61713,Equipment,23.48,,One Leisure Huntingdon,Feb-19,
11/02/2019,White box,SD Card,4021,61713,Equipment,8.95,,One Leisure Huntingdon,Feb-19,
11/02/2019,WP-KALNET4U LTD,0300 service for Building Control,5222,64077,Landline Rental,23.99,,IMD,Feb-19,
11/02/2019,Umbraco,Website Tool for 3 Councils,5225,64071,ICT Software,461.25,,IMD,Feb-19,
12/02/2019,Sainsburys,Sainsburys - training materials,5220,60115,Staff Training and Devlopment,19.05,,Human Resources,Feb-19,
12/02/2019,DVLA,Vehicle Licence,4343,60907,Other Vehicle Costs,167.50,,Operations,Feb-19,
12/02/2019,DVLA,Vehicle Licence,4075,60907,Other Vehicle Costs,252.50,,Operations,Feb-19,
12/02/2019,DVLA,Vehicle Licence,4119,60907,Other Vehicle Costs,252.50,,Operations,Feb-19,
12/02/2019,DVLA,Vehicle Licence,4343,60907,Other Vehicle Costs,252.50,,Operations,Feb-19,
12/02/2019,Waterfitness,Waterfitness,4106,61709,Materials,350.00,,Active Leisure,Feb-19,
12/02/2019,J2 eFax Service,eFax Service for City,5225,64071,ICT Software,19.20,,IMD,Feb-19,
13/02/2019,Hotel on Booking.com,Mosaic - Hotel for training,4148,64300,Conference Expenses,441.28,,Housing,Feb-19,
13/02/2019,Sainsburys,Refreshments,4145,61903,Hospitality,9.30,,Corporate Office,Feb-19,
13/02/2019,Mailchimp,Automated Email and Monthly Suscription,5222,64077,Landline Rental,-15.68,,IMD,Feb-19,
13/02/2019,1&1 INTERNET LIMITED,Domain Registration,5225,64071,ICT Software,74.63,,IMD,Feb-19,
13/02/2019,DRI AVAST SOFTWARE,Security Software,5222,64071,ICT Software,150.70,,IMD,Feb-19,
14/02/2019,Canva,Marketing - Canva,4010,62005,"Advertising, Publicity and Marketing",8.02,,One Leisure Huntingdon,Feb-19,
15/02/2019,Tesco,Tesco,4075,61713,Equipment,6.30,,One Leisure Huntingdon,Feb-19,
18/02/2019,Drolma,Drolma - meditation sessions,5220,60115,Staff Training and Devlopment,250.00,,Human Resources,Feb-19,
18/02/2019,Hunts FA Ltd,Hunts FA Ltd,4075,61713,Equipment,85.00,,One Leisure Huntingdon,Feb-19,
18/02/2019,Adobe,Marketing - Adobe,4010,62005,"Advertising, Publicity and Marketing",41.62,,One Leisure Huntingdon,Feb-19,
19/02/2019,Drolma,Drolma - meditation materials,5220,60115,Staff Training and Devlopment,120.00,,Human Resources,Feb-19,
20/02/2019,Train Fitness International,Train fitness - OL course,5220,60115,Staff Training and Devlopment,599.00,,Human Resources,Feb-19,
20/02/2019,Laerdal Medical,De-fib battery,4055,61709,Materials,219.60,,One Leisure Huntingdon,Feb-19,
21/02/2019,Tea-Urn.com,Hot water urns,4117,61713,Equipment,139.98,,Country Services,Feb-19,
21/02/2019,WP-Countryside Jobs,Senior Ranger job advert,4119,60116,Staff Recruitment Costs,210.00,,Country Services,Feb-19,
21/02/2019,CPAG,Universal Credit book order 14733 ,5278,62003,"Books, Publications and Resources",18.99,,Housing,Feb-19,
21/02/2019,Aitus Residential,Homeless Prevention,H4563,64403,Homeless Prevention Payments,100.00,,Housing,Feb-19,
22/02/2019,Whately Hall,Accommodation for training course,4119,60115,Staff Training and Devlopment,135.00,,Country Services,Feb-19,
22/02/2019,Vodaphone,Homeless Prevention,H4286,64403,Homeless Prevention Payments,10.99,,Housing,Feb-19,
22/02/2019,TSGN,Mosaic - Train ticket,4148,60914,Public Transport for Staff and Members,170.90,,Housing,Feb-19,
22/02/2019,Amazon,Amazon,4075,61713,Equipment,7.99,,One Leisure Huntingdon,Feb-19,
22/02/2019,www.local.gov.uk,LGA Conference in London,4164,64300,Conference Expenses,238.80,,Corporate Office,Feb-19,
24/02/2019,Ikea,Ikea - Oasis materials,5220,60115,Staff Training and Devlopment,24.00,,Human Resources,Feb-19,
24/02/2019,1&1 INTERNET LIMITED,Domain Registration,5225,64071,ICT Software,23.98,,IMD,Feb-19,
25/02/2019,Printed Easy,Printed Easy,4075,61713,Equipment,104.00,,One Leisure Huntingdon,Feb-19,
25/02/2019,Mailchimp,Automated email Subscription for City,5222,64071,ICT Software,38.25,,IMD,Feb-19,
26/02/2019,Tianrong,Nice Jaw Drill ,4119,61713,Equipment,9.99,,Country Services,Feb-19,
26/02/2019,Electric Hut,Table Saw,4119,61713,Equipment,30.95,,Country Services,Feb-19,
26/02/2019,FolkstoneF,Ryobi Jigsaw Pro,4119,61713,Equipment,263.00,,Country Services,Feb-19,
26/02/2019,Hoo Suite,Marketing - Hootsuite,4010,62005,"Advertising, Publicity and Marketing",142.80,,One Leisure Huntingdon,Feb-19,
26/02/2019,Atlassian,Cloud and JIRA Services,5225,64071,ICT Software,23.60,,IMD,Feb-19,
26/02/2019,www.local.gov.uk,LGA Conference in London,5283,64300,Conference Expenses,238.80,,Corporate Office,Feb-19,
27/02/2019,Serco,Serco - training course,5220,60115,Staff Training and Devlopment,480.00,,Human Resources,Feb-19,
27/02/2019,Sainsburys,Refreshments,4145,61903,Hospitality,10.50,,Corporate Office,Feb-19,
27/02/2019,GitHub,Monthly Subscription for 7 Licences,5225,64071,ICT Software,33.46,,IMD,Feb-19,
27/02/2019,Terry's Heel Bar,Key Cutting,4063,60201,Maintenance Buildings,11.00,,One Leisure St Ives,Feb-19,
27/02/2019,ACM Training,Training Course,4343,60115,Staff Training and Devlopment,333.60,,Operations,Feb-19,
28/02/2019,Crazy Egg,Crazy Egg Snapshots Basic full year,5225,64071,ICT Software,83.90,,IMD,Feb-19,
28/02/2019,Amazon,Amazon,4075,61713,Equipment,7.45,,One Leisure Huntingdon,Feb-19,
28/02/2019,Mailchimp,Marketing - Mailchimp,4050,62005,"Advertising, Publicity and Marketing",45.06,,One Leisure Huntingdon,Feb-19,
28/02/2019,Facebook,Marketing - facebook,4050,62005,"Advertising, Publicity and Marketing",50.00,,One Leisure Huntingdon,Feb-19,
28/02/2019,Facebook,Marketing - facebook,4010,62005,"Advertising, Publicity and Marketing",60.57,,One Leisure Huntingdon,Feb-19,
28/02/2019,Bitrix,Web-based PM Tool,5225,64071,ICT Software,154.59,,IMD,Feb-19,
28/02/2019,Wordery,Books,4145,62003,"Books, Publications and Resources",42.37,,Corporate Office,Mar-19,
01/03/2019,Trainline,Trainline - ,5220,60115,Staff Training and Devlopment,39.70,,Human Resources,Mar-19,
01/03/2019,Adjudicators Office,Homeless Prevention,H4627,64403,Homeless Prevention Payments,670.00,,Housing,Mar-19,
01/03/2019,iStock,i-stock Marketing,4010,62005,"Advertising, Publicity and Marketing",70.00,,One Leisure Huntingdon,Mar-19,
01/03/2019,Cop Shop UK,Safety Boots & Footbed,4343,60207,Health and Safety Supplies and Services,125.48,,Operations,Mar-19,
02/03/2019,Facebook,Facebook - Marketing,4010,62005,"Advertising, Publicity and Marketing",15.62,,One Leisure Huntingdon,Mar-19,
03/03/2019,Facebook,Facebook Advert for Right Start Aqua @ OLH,4108,62005,"Advertising, Publicity and Marketing",14.00,,Active Leisure,Mar-19,
03/03/2019,Facebook,Facebook - Marketing,4010,62005,"Advertising, Publicity and Marketing",400.00,,One Leisure Huntingdon,Mar-19,
04/03/2019,Luminus Homes,RIA,H4402,64405,Rental Deposit Loan Payments,137.44,,Housing,Mar-19,
04/03/2019,Facebook,Facebook - Marketing,4010,62005,"Advertising, Publicity and Marketing",400.00,,One Leisure Huntingdon,Mar-19,
05/03/2019,Dale Sauna,sauna chemicals,4055,64000,Chemicals,57.41,,One Leisure St Ives,Mar-19,
06/03/2019,Wilko,Platters for hospitality,4145,61903,Hospitality,2.00,,Corporate Office,Mar-19,
06/03/2019,Marks & Spencer PLC,Resources recruitment,5220,61903,Hospitality,34.70,,Corporate Office,Mar-19,
06/03/2019,Solace,Solace conference,4135,64300,Conference Expenses,630.00,,Corporate Office,Mar-19,
06/03/2019,Facebook,Facebook - Marketing,4010,62005,"Advertising, Publicity and Marketing",400.00,,One Leisure Huntingdon,Mar-19,
07/03/2019,Public Health England,Training - PHE ,5269,60115,Staff Training and Devlopment,30.00,,Community Services,Mar-19,
07/03/2019,Luminus Homes,RIA,H4504,64405,Rental Deposit Loan Payments,160.46,,Housing,Mar-19,
07/03/2019,HDC,Homeless Prevention,H4027,64403,Homeless Prevention Payments,247.69,,Housing,Mar-19,
07/03/2019,Marks & Spencer PLC,Resources recruitment,5262,61903,Hospitality,22.00,,Corporate Office,Mar-19,
08/03/2019,Alphabet,Alphabet - IWD,5220,60115,Staff Training and Devlopment,63.65,,Human Resources,Mar-19,
08/03/2019,TV Licensing,TV Licence,5276,60410,Licences,150.50,,Operations,Mar-19,
09/03/2019,ABC Food Law,ABC food law subscriptions,5220,60115,Staff Training and Devlopment,468.00,,Human Resources,Mar-19,
09/03/2019,ABC Food Law,ABC food law subscriptions,5220,60115,Staff Training and Devlopment,468.00,,Human Resources,Mar-19,
10/03/2019,Premier Inn,Premier Inn - Corporate ,4010,60012,Employee Allowances,-15.49,,One Leisure Huntingdon,Mar-19,
10/03/2019,Amazon,10x USBto3.5mm Barrel Jack Cables,5223,64070,ICT Hardware,55.90,,IMD,Mar-19,
11/03/2019,Castle Boulivard,Castle Boulevard,5220,60115,Staff Training and Devlopment,98.96,,Human Resources,Mar-19,
11/03/2019,WP-KALNET4U LTD  ,0300 service for Building Control,5222,64077,Landline Rental,17.99,,IMD,Mar-19,
11/03/2019,TSGN, Rail Ticket (Thames Link and Great Northern) - Conference in London,4164,60012,Employee Allowances,57.60,,Corporate Office,Mar-19,
14/03/2019,Canva,Canva - Marketing,4010,62005,"Advertising, Publicity and Marketing",7.75,,One Leisure Huntingdon,Mar-19,
14/03/2019,J2 eFax Service,eFax Service for City,5222,64077,Landline Rental,19.20,,IMD,Mar-19,
15/03/2019,Premier Inn,Temporary Accommodation,H4603,64401,B&B Accomodation,676.00,,Housing,Mar-19,
15/03/2019,Workshop Development,Training course,4145,60115,Staff Training and Devlopment,239.94,,Corporate Office,Mar-19,
15/03/2019,Mobile Fun,Phone case for Samsung J6,5223,64070,ICT Hardware,12.18,,IMD,Mar-19,
15/03/2019,Digicert Inc,Wildcard Certificate for *scambs.gov.uk,5228,64071,ICT Software,513.14,,IMD,Mar-19,
16/03/2019,Booker,Booker - vending,4039,61907,Vending Materials,179.73,,One Leisure Huntingdon,Mar-19,
16/03/2019,Amazon,Phone case for Samsung A9,5223,64070,ICT Hardware,11.44,,IMD,Mar-19,
17/03/2019,Amazon,Amazon - Class Bands,4101,61713,Equipment,89.94,,Active Leisure,Mar-19,
18/03/2019,Luminus Homes,RIA,H2624,64405,Rental Deposit Loan Payments,236.38,,Housing,Mar-19,
18/03/2019,Eazy-Print,Eazy Print - Roller Banners,4108,62005,"Advertising, Publicity and Marketing",118.80,,Active Leisure,Mar-19,
18/03/2019,Adobe,Adobe - marketing,4010,62005,"Advertising, Publicity and Marketing",41.62,,One Leisure Huntingdon,Mar-19,
19/03/2019,CIEH,Training - CIEH ,5271,60115,Staff Training and Devlopment,40.00,,Community Services,Mar-19,
19/03/2019,Interflora,Interflora - Counsel,4139,60117,Staff Other Expenses,41.00,,Community Services,Mar-19,
19/03/2019,DVLA,Vehicle Licence,4343,60907,Other Vehicle Costs,167.50,,Operations,Mar-19,
19/03/2019,DVLA,Vehicle Licence,4212,60907,Other Vehicle Costs,252.50,,Operations,Mar-19,
19/03/2019,DVLA,Vehicle Licence,4327,60907,Other Vehicle Costs,252.50,,Operations,Mar-19,
19/03/2019,Marks & Spencer PLC,Cabinet Away Day refreshments,4145,61903,Hospitality,44.69,,Corporate Office,Mar-19,
20/03/2019,Travelodge,Temporary Accommodation,H4608,64401,B&B Accomodation,270.00,,Housing,Mar-19,
23/03/2019,Mailchimp,Automated email Subscription for City,5222,64071,ICT Software,53.92,,IMD,Mar-19,
25/03/2019,Travelodge,Temporary Accommodation,H4608,64401,B&B Accomodation,443.00,,Housing,Mar-19,
25/03/2019,Amazon,Amazon Prime,4075,61713,Equipment,7.99,,One Leisure Huntingdon,Mar-19,
25/03/2019,Facebook,Facebook - Marketing,4010,62005,"Advertising, Publicity and Marketing",400.00,,One Leisure Huntingdon,Mar-19,
26/03/2019,CPAG,Publication Order - Welfare Benefits,5278,62003,"Books, Publications and Resources",64.99,,Housing,Mar-19,
26/03/2019,HDC,Homeless Prevention,H4153,64403,Homeless Prevention Payments,191.92,,Housing,Mar-19,
26/03/2019,Solace,Solace conference,4135,64300,Conference Expenses,90.00,,Corporate Office,Mar-19,
26/03/2019,iStock,i-stock Marketing,4010,62005,"Advertising, Publicity and Marketing",70.00,,One Leisure Huntingdon,Mar-19,
26/03/2019,Hoo Suite,Hootsuite - Marketing,4010,62005,"Advertising, Publicity and Marketing",142.80,,One Leisure Huntingdon,Mar-19,
26/03/2019,Atlassian,Cloud and JIRA Services,5225,64071,ICT Software,23.47,,IMD,Mar-19,
27/03/2019,CIEH,Conferences ,4139,64300,Conference Expenses,140.00,,Community Services,Mar-19,
27/03/2019,RSPB,RSPB countryside course,5220,60115,Staff Training and Devlopment,288.00,,Human Resources,Mar-19,
27/03/2019,GitHub,Monthly Subscription for 7 Licences,5225,64071,ICT Software,33.62,,IMD,Mar-19,
27/03/2019,SURVEY MONKEY,Annual Subscription for HDC,5229,64071,ICT Software,280.00,,IMD,Mar-19,
28/03/2019,RICARDO-AEA LTD          HARWELL,Subscription - EMAQ,5271,64800,Membersip and Subscription,"2,240.40",,Community Services,Mar-19,
28/03/2019,RTPI,RTPI - training course,5220,60115,Staff Training and Devlopment,156.00,,Human Resources,Mar-19,
28/03/2019,CROSS KEYS HOMES,RIA,H4332,64405,Rental Deposit Loan Payments,59.56,,Housing,Mar-19,
29/03/2019,Tianrong,Tianrong,4119,61713,Equipment,10.59,,Country Services,Mar-19,
29/03/2019,Tool Savel,Tool Savel,4119,61713,Equipment,219.95,,Country Services,Mar-19,
29/03/2019,Folkstone F,Folkstone F,4119,61713,Equipment,260.95,,Country Services,Mar-19,
29/03/2019,Chronos,Chronos,4119,61713,Equipment,340.00,,Country Services,Mar-19,
29/03/2019,Events Industry,Subscription - Purple Guide,4269,64800,Membersip and Subscription,30.00,,Community Services,Mar-19,
29/03/2019,Amazon,Amazon - Oasis and training materials,5220,60115,Staff Training and Devlopment,51.97,,Human Resources,Mar-19,
29/03/2019,Amazon,Amazon - Oasis and training materials,5220,60115,Staff Training and Devlopment,92.98,,Human Resources,Mar-19,
29/03/2019,Axiom Housing,Homeless Prevention,H3882,64403,Homeless Prevention Payments,450.67,,Housing,Mar-19,
29/03/2019,Bitrix,Web-based PM Tool,5225,64071,ICT Software,157.86,,IMD,Mar-19,
29/03/2019,Digicert Inc,SSL Certificate for www.huntingdonshire.gov.uk,5229,64071,ICT Software,237.20,,IMD,Mar-19,
31/03/2019,Mailchimp,MailChimp - Marketing,4010,62005,"Advertising, Publicity and Marketing",46.58,,One Leisure Huntingdon,Mar-19,
31/03/2019,Facebook,Facebook - Marketing,4010,62005,"Advertising, Publicity and Marketing",52.66,,One Leisure Huntingdon,Mar-19,
31/03/2019,Facebook,Facebook - Marketing,4010,62005,"Advertising, Publicity and Marketing",342.17,,One Leisure Huntingdon,Mar-19,
01/04/2019,Guangzhouli,Swim lesson equipment,4056,61713,Equipment,21.96,,One Leisure St Ives,Mar-19,
02/04/2019,Amazon,Amazon,4119,61713,Equipment,40.43,,Country Services,Mar-19,
02/04/2019,Sequence UK Ltd,Homeless Prevention,H4628,64403,Homeless Prevention Payments,350.00,,Housing,Mar-19,
02/04/2019,B & Q,B & Q - Condition Survey,100021,60201,Maintenance Buildings,50.00,,One Leisure Huntingdon,Mar-19,
02/04/2019,Digicert Inc,SSL Cerificate for *scambs.gov.uk,5228,64071,ICT Software,130.54,,IMD,Mar-19,
02/04/2019,Amazon,swim lesson equipment,4056,61713,Equipment,9.74,,One Leisure St Ives,Mar-19,
